{"text_format":"1","workbook":"xlsx","n_sheets":7,"sheets":["DATOS","REQ_ESPECIFICO","Valores","REQUERIMIENTO","C_C","REQ_MARCO","Informe R.A.M"],"not_rendered":{"charts":0,"images":4,"macros":1,"external_links":0,"defined_names":2,"comments":2,"pivot_tables":0},"unopened":[],"bounds":{"document_bytes":16777216,"sheet_cells":100000,"rows_first":2000,"rows_last":500,"rows_between":2000,"halvings":0,"cell_chars":16384,"cell_head_chars":4096},"cells_cut":0,"cells_raw":0,"read":"whole","date_system":"1900"}

{"sheet":"DATOS","index":0,"n_rows":45,"n_cols":20,"rows_kept":45,"cut":false,"hidden":true,"merged":[[0,9,1,10],[0,11,0,16],[1,11,2,11],[1,13,2,13],[1,14,2,14],[1,15,2,15],[1,16,2,16]]}
[null,null,null,null,null,null,null,null,null,"Horas de clase (a)",null,"Honorarios (b)"]
["FACILITADORES","DISEÑOS CURRICULARES","EXPERTO","PERFIL",null,null,null,null,null,null,null,"Profesionales",null,"Tecnólogos Superiores","Técnicos Superiores","Artesanos","Certificación por Competencias Laborales"]
[null,"Elegir un elemento","Elija un elemento","Elija un elemento",null,null,null,null,null,"Mínimo**","Máximo"]
["Elija un elemento","Elaborar diseño curricular","Contraparte","Ampliación de perfil",null,null,null,null,null,null,null,"Elija un valor",null,null,null,null,"Elija un valor","Examinación regular","E. Casos especiales"]
["Artesanos","Actualizar diseño curricular","SECAP",null,null,null,null,null,null,60,69,"Tarifas Continente",null,527,527,527,527,"Elija un valor","Elija un valor",{"$f":"CONCATENATE(S5,\";\")","v":"Elija un valor;"}]
["Servicios profesionales especializados",null,null,"DIRECCIÓN",null,null,null,null,null,70,79,527,null,622,622,622,622,"Tarifas Continente","Tarifas Continente",{"$f":"CONCATENATE(S6,\";\")","v":"Tarifas Continente;"}]
["Servicios tecnológicos especializados",null,"TIPO DE CONVENIO","ELIJA UN ELEMENTO",null,null,null,null,null,80,89,622,null,733,733,733,733,527,11.98,"11,98;"]
["Servicios técnicos especializados","ADVERBIO","ELIJA UN ELEMENTO","CAPACITACIÓN Y PROMOCIÓN DE SERVICIOS",null,null,null,null,null,90,99,733,null,817,817,733,733,553,"Tarifas Galápagos","Tarifas Galápagos;"]
["Certificación por competencias laborales","Elija un elemento","CONTRATO","CERTIFICACIÓN DE PERSONAS",null,null,null,null,null,100,109,817,null,901,901,733,733,675,21.6,"21,6;"]
[null,"SI","CONVENIO ESPECIFICO","ZONA 1",null,null,null,null,null,110,119,901,null,986,901,733,733,901]
["SERVICIO","NO","CONVENIO MARCO","ZONA 2",null,null,null,null,null,120,129,986,null,986,901,733,733,1086]
["ELIJA EL SERVICIO",null,"CONVENIO DE COOPERACIÓN INTERINSTITUCIONAL","ZONA 3",null,null,null,null,null,130,139,1086,null,986,901,733,733,1412]
["CAPACITACIÓN","DIRECCIÓN","MEMORANDO DE ENTENDIMIENTO","ZONA 4",null,null,null,null,null,140,160,1212,null,986,901,733,733,1676]
["CERTIFICACIÓN","DIRECCIÓN NACIONAL","Elija un elemento","ZONA 5",null,null,null,null,null,null,null,1412,null,null,null,null,null,"Tarifas Galápagos"]
["CAPACITACIÓN Y CERTFICACIÓN","DIRECCIÓN ZONAL","Director Ejecutivo","ZONA 6",null,null,null,null,null,null,null,"Tarifas Galápagos",null,null,null,null,null,950.18]
["COBERTURA","ELIJA UN ELEMENTO","Subdirector Técnico","ZONA 7",null,null,null,null,null,null,null,950.18,null,null,null,null,null,997.06]
["Elija un elemento","DÍAS","Director Zonal","DISEÑO PEDAGÓGICO",null,null,null,null,null,null,null,1121.47,null,null,null,null,null,1217.03]
["Nacional","MES",{"$f":"TODAY()","v":"2026-04-20"},"EVALUACIÓN",null,null,null,null,null,null,null,1321.6,null,null,null,null,null,1624.5]
["Provincial","AÑOS",null,"ESTUDIOS",null,null,null,null,null,null,null,1473.05,null,null,null,null,null,1958.06]
["Zonal","Elegir un elemento","Descuento para capacitación","CAPACITACIÓN Y PROMOCIÓN DE PERSONAS",null,null,null,null,null,null,null,1624.5,null,null,null,null,null,2545.84]
["Cantonal","Natural","Elija un elemento","CERTIFICACIÓN DE PERSONAS",null,null,null,null,null,null,null,1777.76,null,null,null,null,null,3021.83]
["Parroquial","Privada","Seminario"," ZONA 1",null,null,null,null,null,null,null,1958.06]
[null,"Pública","Escenario 1","ZONA 2",null,null,null,null,null,null,null,2185.2399999999998]
[null,"TARIFA REGULAR","Escenario 2","ZONA 3"]
[null,null,"Escenario 3","ZONA 4"]
[null,null,"Escenario 4","ZONA 5"]
[null,null,"Escenario 5","ZONA 6"]
[null,null,"Escenario 6","ZONA 7"]
[null,null,"Escenario 7"]
[null,null,"Escenario 8"]
[null,null,"Escenario 1 (Volumen)"]
["ESTABLECER DE MANERA GENERAL CONDICIONES (TÉCNICAS Y COMERCIALES)",null,"Descuento para certificación",{"$f":"CONCATENATE(A32,\";\")","v":"ESTABLECER DE MANERA GENERAL CONDICIONES (TÉCNICAS Y COMERCIALES);"}]
["ESTABLECER COMPROMISOS E INTENCIONES GENERALES DE COOPERACIÓN",null,"Elija un elemento",{"$f":"CONCATENATE(A33,\";\")","v":"ESTABLECER COMPROMISOS E INTENCIONES GENERALES DE COOPERACIÓN;"}]
["ESTABLECER LA COOPERACIÓN CON INSTITUCIONES PERTINENTES CAPACES DE OFRECER AYUDA O CONOCIMIENTOS COMPLEMENTARIOS",null,"Escenario 1","ESTABLECER LA COOPERACIÓN CON INSTITUCIONES PERTINENTES CAPACES DE OFRECER AYUDA O CONOCIMIENTOS COMPLEMENTARIOS;"]
["ESTABLECER ALIANZAS ESTRATÉGICAS DE BENEFICIO MUTUO",null,"Escenario 2","ESTABLECER ALIANZAS ESTRATÉGICAS DE BENEFICIO MUTUO;"]
["PRECURSOR DE CONVENIO ESPECÍFICO",null,"Escenario 3","PRECURSOR DE CONVENIO ESPECÍFICO;"]
["CRECIMIENTO INSTITUCIONAL",null,"Escenario 1 (Volumen)","CRECIMIENTO INSTITUCIONAL;"]
["ECONÓMICO",null,null,"ECONÓMICO;"]
["ELIJA UN ELEMENTO",null,null,"ELIJA UN ELEMENTO;"]
["OTRO",null,null,"OTRO;"]
[]
["ELIJA UN ELEMENTO"]
["RENOVACIÓN"]
["AMPLIACIÓN"]
["MODIFICACIÓN"]

{"sheet":"REQ_ESPECIFICO","index":1,"n_rows":271,"n_cols":25,"rows_kept":271,"cut":false,"hidden":true,"merged":[[230,0,230,1],[230,2,230,13],[230,14,230,16],[230,17,230,18],[230,19,230,27],[260,2,263,7],[256,2,259,7],[266,8,267,15],[264,8,265,15],[262,8,263,15],[260,8,261,15],[258,8,259,15],[256,8,257,15],[256,16,259,23],[260,16,263,23],[264,16,267,23],[264,2,267,7],[236,14,236,16],[234,14,234,16],[233,14,233,16],[232,14,232,16],[231,14,231,16],[28,14,28,27],[28,0,28,13],[22,0,22,8],[22,9,22,17],[22,18,22,27],[25,0,25,13],[25,14,25,27],[9,5,10,10],[9,11,10,21],[16,14,16,27],[16,0,16,13],[15,0,15,27],[19,0,19,13],[19,14,19,27],[17,0,17,8],[17,9,17,17],[17,18,17,27],[20,0,20,13],[20,14,20,27],[21,0,21,8],[21,9,21,17],[21,18,21,27],[23,0,23,13],[23,14,23,27],[151,0,151,6],[152,14,152,17],[152,7,152,13],[153,7,153,13],[154,18,154,22],[73,0,74,14],[73,15,74,27],[151,7,151,13],[151,14,151,17],[149,0,149,27],[109,8,110,24],[127,8,128,24],[105,0,105,27],[147,0,147,27],[151,23,151,27],[153,14,153,17],[152,23,152,27],[153,23,153,27],[151,18,151,22],[152,18,152,22],[153,18,153,22],[95,10,95,18],[95,0,95,9],[134,11,134,12],[24,14,24,27],[24,0,24,13],[26,21,26,26],[27,0,27,27],[26,0,26,1],[26,3,26,4],[26,5,26,11],[26,13,26,14],[26,16,26,18],[26,19,26,20],[29,0,29,13],[29,14,29,27],[30,0,30,13],[30,14,30,27],[31,0,31,13],[31,14,31,27],[32,0,32,13],[32,14,32,27],[33,0,33,13],[33,14,33,27],[35,0,35,13],[35,14,35,27],[34,14,34,27],[34,0,34,13],[36,0,36,9],[36,10,36,13],[36,24,36,27],[36,14,36,23],[37,0,37,13],[37,14,37,27],[38,0,38,13],[61,0,61,2],[61,4,61,5],[61,10,61,11],[61,16,61,17],[53,6,53,16],[39,0,39,13],[56,6,56,16],[57,6,57,16],[54,0,54,5],[55,0,55,5],[56,0,56,5],[57,0,57,5],[38,14,38,27],[51,0,51,27],[52,0,52,27],[39,14,39,17],[39,18,39,22],[39,23,39,27],[44,0,48,27],[43,0,43,27],[70,0,70,27],[65,0,65,5],[58,1,58,17],[59,1,59,17],[60,0,60,1],[60,2,60,17],[53,0,53,5],[54,6,54,16],[55,6,55,16],[54,17,54,27],[53,17,53,27],[55,17,55,27],[56,17,56,27],[57,17,57,27],[66,0,66,5],[66,17,66,27],[65,17,65,27],[66,6,66,16],[65,6,65,16],[64,6,64,16],[63,6,63,16],[62,17,62,27],[62,6,62,16],[62,0,62,5],[63,17,63,27],[64,17,64,27],[63,0,63,5],[64,0,64,5],[101,0,101,27],[100,19,100,27],[83,21,83,27],[83,14,83,20],[83,7,83,13],[83,0,83,6],[71,0,71,27],[77,0,77,27],[78,0,78,27],[81,0,81,27],[91,0,91,27],[99,19,99,27],[96,19,96,27],[100,10,100,18],[99,10,99,18],[96,10,96,18],[100,0,100,9],[99,0,99,9],[96,0,96,9],[95,19,95,27],[93,0,93,27],[143,0,143,27],[113,13,113,14],[113,15,113,16],[113,17,113,18],[113,19,113,20],[113,21,113,22],[113,11,113,12],[113,9,113,10],[113,7,113,8],[113,5,113,6],[113,1,113,4],[114,21,114,22],[114,23,114,24],[115,1,115,4],[115,5,115,6],[115,7,115,8],[115,13,115,14],[115,15,115,16],[115,17,115,18],[115,19,115,20],[115,21,115,22],[115,23,115,24],[114,1,114,4],[144,0,144,27],[146,0,146,27],[84,7,84,13],[88,7,88,13],[89,7,89,13],[90,7,90,13],[84,0,84,6],[88,0,88,6],[89,0,89,6],[90,0,90,6],[84,21,84,27],[88,21,88,27],[89,21,89,27],[90,21,90,27],[88,14,88,20],[84,14,84,20],[90,14,90,20],[89,14,89,20],[98,19,98,27],[104,0,104,27],[109,1,110,7],[113,23,113,24],[115,9,115,10],[115,11,115,12],[152,0,152,6],[153,0,153,6],[154,23,154,27],[158,0,158,27],[165,0,165,6],[165,7,165,12],[165,13,165,17],[165,18,165,22],[165,23,165,27],[166,23,166,27],[171,0,171,27],[161,0,161,27],[163,0,163,6],[163,7,163,12],[163,13,163,17],[163,18,163,22],[163,23,163,27],[164,0,164,6],[164,7,164,12],[164,13,164,17],[164,18,164,22],[164,23,164,27],[167,1,168,27],[227,0,227,1],[226,0,226,1],[197,0,197,27],[198,0,198,27],[200,0,200,27],[202,0,203,27],[205,0,205,27],[209,0,209,27],[206,0,207,27],[210,0,211,27],[215,0,215,27],[226,19,226,27],[227,19,227,27],[225,17,225,18],[226,17,226,18],[228,0,228,1],[229,0,229,1],[231,0,231,1],[232,0,232,1],[233,0,233,1],[235,2,235,13],[254,0,254,27],[234,2,234,13],[236,0,236,1],[235,0,235,1],[234,0,234,1],[234,19,234,27],[235,19,235,27],[236,19,236,27],[239,0,239,27],[243,0,243,27],[245,0,245,27],[246,0,246,27],[247,0,247,27],[248,0,248,27],[249,0,249,27],[252,0,252,27],[236,2,236,13],[250,0,250,27],[228,2,228,13],[229,2,229,13],[231,2,231,13],[232,2,232,13],[233,2,233,13],[218,14,218,16],[219,14,219,16],[220,14,220,16],[221,14,221,16],[222,14,222,16],[223,14,223,16],[226,14,226,16],[225,14,225,16],[224,14,224,16],[218,2,218,13],[225,2,225,13],[224,2,224,13],[223,2,223,13],[222,2,222,13],[221,2,221,13],[220,2,220,13],[219,2,219,13],[227,2,227,13],[226,2,226,13],[229,14,229,16],[228,14,228,16],[227,14,227,16],[235,14,235,16],[235,17,235,18],[236,17,236,18],[228,19,228,27],[229,19,229,27],[231,19,231,27],[232,19,232,27],[233,19,233,27],[227,17,227,18],[228,17,228,18],[229,17,229,18],[231,17,231,18],[232,17,232,18],[233,17,233,18],[234,17,234,18],[85,21,85,27],[86,21,86,27],[87,21,87,27],[97,0,97,9],[98,0,98,9],[97,10,97,18],[98,10,98,18],[97,19,97,27],[225,19,225,27],[225,0,225,1],[224,0,224,1],[223,0,223,1],[222,0,222,1],[221,0,221,1],[220,0,220,1],[216,0,216,27],[218,0,218,1],[219,0,219,1],[180,0,180,27],[181,0,181,27],[182,0,182,27],[184,0,185,27],[186,3,186,9],[187,3,187,9],[85,0,85,6],[86,0,86,6],[87,0,87,6],[85,7,85,13],[86,7,86,13],[87,7,87,13],[85,14,85,20],[86,14,86,20],[87,14,87,20],[114,5,114,6],[114,7,114,8],[114,9,114,10],[114,11,114,12],[114,13,114,14],[114,15,114,16],[114,17,114,18],[114,19,114,20],[116,21,116,22],[116,23,116,24],[117,1,117,4],[117,5,117,6],[117,7,117,8],[117,9,117,10],[117,11,117,12],[117,13,117,14],[117,15,117,16],[117,17,117,18],[117,19,117,20],[117,21,117,22],[117,23,117,24],[116,1,116,4],[116,5,116,6],[116,7,116,8],[116,9,116,10],[116,11,116,12],[116,13,116,14],[116,15,116,16],[116,17,116,18],[116,19,116,20],[118,21,118,22],[118,23,118,24],[119,1,119,4],[119,5,119,6],[119,7,119,8],[119,9,119,10],[119,11,119,12],[119,13,119,14],[119,15,119,16],[119,17,119,18],[119,19,119,20],[119,21,119,22],[119,23,119,24],[118,1,118,4],[118,5,118,6],[118,7,118,8],[118,9,118,10],[118,11,118,12],[118,13,118,14],[118,15,118,16],[118,17,118,18],[118,19,118,20],[120,1,120,4],[120,5,120,6],[120,7,120,8],[120,9,120,10],[120,11,120,12],[120,13,120,14],[120,15,120,16],[120,17,120,18],[120,19,120,20],[121,23,121,24],[133,7,133,8],[133,9,133,10],[133,11,133,12],[131,7,131,10],[131,11,131,14],[131,15,131,18],[133,21,133,22],[127,1,128,7],[132,1,132,6],[133,1,133,6],[132,19,132,20],[134,1,134,6],[135,1,135,6],[135,19,135,20],[132,7,132,8],[132,9,132,10],[132,11,132,12],[132,13,132,14],[132,15,132,16],[133,13,133,14],[133,15,133,16],[133,17,133,18],[133,19,133,20],[134,7,134,8],[134,9,134,10],[134,13,134,14],[134,15,134,16],[134,17,134,18],[134,19,134,20],[135,7,135,8],[135,9,135,10],[135,11,135,12],[135,13,135,14],[135,15,135,16],[135,17,135,18],[270,0,273,26],[172,0,175,27],[1,0,6,8],[1,9,6,20],[6,21,6,27],[5,21,5,27],[3,21,4,27],[1,21,2,27],[11,6,12,20],[112,9,112,12],[112,13,112,16],[112,17,112,20],[138,21,138,22],[106,1,107,24],[124,1,125,24],[137,21,137,22],[136,21,136,22],[134,21,134,22],[135,21,135,22],[120,21,120,22],[120,23,120,24],[132,17,132,18],[132,21,132,22],[121,19,121,22],[189,0,189,27],[190,0,190,27],[136,1,136,6],[137,1,137,6],[138,17,138,20],[137,7,137,8],[137,9,137,10],[137,11,137,12],[137,13,137,14],[137,15,137,16],[137,17,137,18],[137,19,137,20],[136,7,136,8],[136,9,136,10],[136,11,136,12],[136,13,136,14],[136,15,136,16],[136,17,136,18],[136,19,136,20],[186,10,186,13],[187,10,187,13],[176,0,176,27],[178,0,178,27],[166,18,166,22],[191,0,194,27],[218,19,218,27],[219,19,219,27],[219,17,219,18],[220,17,220,18],[221,17,221,18],[222,17,222,18],[223,17,223,18],[224,17,224,18],[220,19,220,27],[221,19,221,27],[222,19,222,27],[223,19,223,27],[224,19,224,27],[218,17,218,18]]}
[]
["\n",null,null,null,null,null,null,null,null,"REQUERIMIENTO DE VIABILIDAD ",null,null,null,null,null,null,null,null,null,null,null,"Código: GES-PS-02-01-FOR02"]
[]
[null,null,null,null,null,null,null,null,null,null,null,null,null,null,null,null,null,null,null,null,null,"Versión: 7.1"]
[]
[null,null,null,null,null,null,null,null,null,null,null,null,null,null,null,null,null,null,null,null,null,"Fecha:  23/01/2024"]
[null,null,null,null,null,null,null,null,null,null,null,null,null,null,null,null,null,null,null,null,null,"Página 1 de 5"]
[]
[]
[null,null,null,null,null,"TIPO DE ACUERDO",null,null,null,null,null,"ELIJA UN ELEMENTO"]
[]
[null,null,null,null,null,null,"Elija un elemento según corresponda"]
[]
[]
[]
["1. INFORMACIÓN GENERAL"]
["REQUERIMIENTO Nro.",null,null,null,null,null,null,null,null,null,null,null,null,null,"XXX-SECAP-XX-202X"]
["UNIDAD OPERATIVA SECAP",null,null,null,null,null,null,null,null,"ELIJA UN ELEMENTO",null,null,null,null,null,null,null,null,"ELIJA UN ELEMENTO"]
[]
["CIUDAD:"]
["CENTRO OPERATIVO:"]
["COBERTURA GEOGRÁFICA:\n",null,null,null,null,null,null,null,null,"Elija un elemento",null,null,null,null,null,null,null,null,"(detallar las zonas, provincias, cantones o parroquias)"]
["PLAZO:\n (no puede ser mayor a 1 año)",null,null,null,null,null,null,null,null,"MES",null,null,null,null,null,null,null,null,"(detallar el tiempo de plazo)"]
["CARGO DE LA PERSONA QUE SUSCRIBE:POR PARTE DEL SECAP",null,null,null,null,null,null,null,null,null,null,null,null,null,"Elija un elemento"]
["NOMBRE",null,null,null,null,null,null,null,null,null,null,null,null,null,"(detallar el nombre)"]
["LUGAR DE SUSCRIPCIÓN",null,null,null,null,null,null,null,null,null,null,null,null,null,"(detallar el lugar)"]
[]
["2. IDENTIFICACIÓN DE LA CONTRAPARTE"]
["DESCRIPCIÓN",null,null,null,null,null,null,null,null,null,null,null,null,null,"RESPUESTA"]
["RAZÓN SOCIAL"]
["RUC / CÉDULA"]
["TIPO DE CONTRAPARTE",null,null,null,null,null,null,null,null,null,null,null,null,null,"Elegir un elemento"]
["NOMBRE DEL REPRESENTANTE LEGAL"]
["NÚMERO DE CÉDULA DEL REPRESENTANTE LEGAL "]
["DIRECCIÓN DE LA INSTITUCIÓN"]
["TELÉFONO DE LA INSTITUCIÓN"]
["INICIO DE ACTIVIDADES SUPERIORES A 1 AÑO\n(información desde el RUC)",null,null,null,null,null,null,null,null,null,"Elija un elemento",null,null,null,"TIEMPO DE ACTIVIDAD",null,null,null,null,null,null,null,null,null,"(detallar el tiempo)"]
["LA CONTRAPARTE TIENE VÍNCULO FAMILIAR CON ALGÚN FUNCIONARIO DEL SECAP RELACIONADO A ESTA NEGOCIACIÓN",null,null,null,null,null,null,null,null,null,null,null,null,null,"Elija un elemento"]
["LA CONTRAPARTE PERTENECE A ALGÚN FUNCIONARIO DEL SECAP VINCULADO A ESTA NEGOCIACIÓN",null,null,null,null,null,null,null,null,null,null,null,null,null,"Elija un elemento"]
["SE GENERÓ INHABILIDAD POR INCUMPLIMIENTO EN CONVENIOS Y/O ACUERDOS SUSCRITOS CON ANTERIORIDAD",null,null,null,null,null,null,null,null,null,null,null,null,null,"Elija un elemento",null,null,null,"Si la respuesta es afirmativa colocar fecha",null,null,null,null,"(colocar fecha inhabilidad)"]
[]
[]
[]
["3. OBJETO"]
["(Detallar los servicios que dan origen al Convenio Específico y/o Contrato;  motivo o finalidad de la suscripción, explica y justifica)"]
[]
[]
[]
[]
[]
[]
["4. SUGERENCIA PARA LA ADMINISTRACIÓN  Y COMISIÓN TÉCNICA: "]
["(Complete la información)"]
["SECAP",null,null,null,null,null,"ADMINISTRADOR",null,null,null,null,null,null,null,null,null,null,"COMISIÓN TÉCNICA"]
["NOMBRE"]
["CARGO"]
["NÚMERO TELEFÓNICO"]
["EMAIL"]
[]
[]
[]
[]
["CONTRAPARTE",null,null,null,null,null,"ADMINISTRADOR",null,null,null,null,null,null,null,null,null,null,"COMISIÓN TÉCNICA"]
["NOMBRE"]
["CARGO"]
["NÚMERO TELEFÓNICO"]
["EMAIL"]
[]
[]
[]
["5. SERVICIO REQUERIDO:"]
["(Determine lo que se aplique y llene la información requerida)"]
[]
["Servicio",null,null,null,null,null,null,null,null,null,null,null,null,null,null,"CAPACITACIÓN Y CERTFICACIÓN"]
[]
[]
[]
["5.1 ACTIVIDAD COMPLEMENTARIA"]
["(Completar la información de ser el caso)"]
[]
[]
["a)     CAPACITACÓN:  Elaboración y/o modificacón diseño curricular"]
[]
["DISEÑOS CURRICULARES",null,null,null,null,null,null,"DURACIÓN",null,null,null,null,null,null,"ÁREA CAPACITACIÓN",null,null,null,null,null,null,"EXPERTO"]
["Elegir un elemento",null,null,null,null,null,null,null,null,null,null,null,null,null,null,null,null,null,null,null,null,"Elija un elemento"]
["Elegir un elemento",null,null,null,null,null,null,null,null,null,null,null,null,null,null,null,null,null,null,null,null,"Elija un elemento"]
["Elegir un elemento",null,null,null,null,null,null,null,null,null,null,null,null,null,null,null,null,null,null,null,null,"Elija un elemento"]
["Elegir un elemento",null,null,null,null,null,null,null,null,null,null,null,null,null,null,null,null,null,null,null,null,"Elija un elemento"]
["Elegir un elemento",null,null,null,null,null,null,null,null,null,null,null,null,null,null,null,null,null,null,null,null,"Elija un elemento"]
["Elegir un elemento",null,null,null,null,null,null,null,null,null,null,null,null,null,null,null,null,null,null,null,null,"Elija un elemento"]
["Elegir un elemento",null,null,null,null,null,null,null,null,null,null,null,null,null,null,null,null,null,null,null,null,"Elija un elemento"]
["Nota: previo a la aplicación de este servicio debe constar el respectivo Informe de Pertinencia aprobado"]
[]
["b)     CERTIFICACIÓN: Ampliación esquema de perfil"]
[]
["ESQUEMA DE PERFIL",null,null,null,null,null,null,null,null,null,"ÁREA",null,null,null,null,null,null,null,null,"EXPERTO"]
["Elija un elemento",null,null,null,null,null,null,null,null,null,null,null,null,null,null,null,null,null,null,"Elija un elemento"]
["Elija un elemento",null,null,null,null,null,null,null,null,null,null,null,null,null,null,null,null,null,null,"Elija un elemento"]
["Elija un elemento",null,null,null,null,null,null,null,null,null,null,null,null,null,null,null,null,null,null,"Elija un elemento"]
["Elija un elemento",null,null,null,null,null,null,null,null,null,null,null,null,null,null,null,null,null,null,"Elija un elemento"]
["Elija un elemento",null,null,null,null,null,null,null,null,null,null,null,null,null,null,null,null,null,null,"Elija un elemento"]
["Nota: previo a la aplicación de este servicio debe constar el respectivo Informe de Pertinencia aprobado"]
[]
[]
["6. NEGOCIACIÓN:"]
["Detallar de acuerdo a la Negociacón realizada"]
[null,"1) CAPACITACIÓN"]
[]
[]
[null,"TARIFA",null,null,null,null,null,null,"Escenario 7: La contraparte aporta aulas y materiales."]
[]
[]
[null,null,null,null,null,null,null,null,null,"Sin vulnerabilidad",null,null,null,"1 Vulnerabilidad",null,null,null,"2 Vulnerabilidades"]
[null,"Nombre curso",null,null,null,"Código diseño",null,"Horas",null,"Nro. Participantes",null,"Valor por participante",null,"Nro. Participantes",null,"Valor por participante",null,"Nro. Participantes",null,"Valor por participante",null,"Cantidad Total",null,"Valor por curso"]
[]
[]
[]
[]
[]
[]
[]
[null,null,null,null,null,null,null,null,null,null,null,null,null,null,null,null,null,null,null,"TOTAL:",null,null,null,{"$f":"SUM(X115:Y121)","v":0}]
[]
[]
[null,"2) CERTIFICACIÓN"]
[]
[]
[null,"TARIFA ",null,null,null,null,null,null,"Escenario 1 Volumen: La contraparte no aporta el examinador. La contraparte quiere certificar a 20 o más candidatos."]
[]
[]
[]
[null,null,null,null,null,null,null,"Sin vulnerabilidad",null,null,null,"1 Vulnerabilidad",null,null,null,"2 Vulnerabilidades"]
[null,"Nombre perfil",null,null,null,null,null,"Nro. Participantes",null,"Valor por participante",null,"Nro. Participantes",null,"Valor por participante",null,"Nro. Participantes",null,"Valor por participante",null,"Cantidad Total",null,"Valor por perfil"]
[]
[]
[]
[]
[]
[null,null,null,null,null,null,null,null,null,null,null,null,null,null,null,null,null,"TOTAL:",null,null,null,{"$f":"SUM(V134:W138)","v":0}]
[]
[]
[]
[]
["6,1.  EGRESOS EN CAPACITACIÓN Y CERTIFICACIÓN:"]
["(Complete con la información SOLO APLICA PARA CONVENIOS ESPECÍFICOS) "]
[]
["-          EGRESOS CAPACITACIÓN:"]
[]
[]
["Completar de acuerdo a la negociación"]
[]
["Tipo de facilitador (SECAP)",null,null,null,null,null,null,"Nivel de facilitador",null,null,null,null,null,null,"N° contrataciones",null,null,null,"VALOR SIN IVA",null,null,null,null,"VALOR TOTAL SIN IVA"]
["Contrato",null,null,null,null,null,null,"Elija un elemento",null,null,null,null,null,null,0,null,null,null,527,null,null,null,null,{"$f":"IF(OR(O153=\"0\",S153=\"Elija un valor\"),\"\",O153*S153)","v":0}]
["Planta",null,null,null,null,null,null,"Elija un elemento"]
[null,null,null,null,null,null,null,null,null,null,null,null,null,null,null,null,null,null,"TOTAL:",null,null,null,null,{"$f":"X153","v":0}]
[]
[]
[]
["-          EGRESOS CERIFICACIÓN:"]
[]
[]
["Completar de acuerdo a la negociación"]
[]
["Tipo de Examinador (SECAP)",null,null,null,null,null,null,"Nivel del Examinador",null,null,null,null,null,"N° contrataciones",null,null,null,null,"Valor sin IVA",null,null,null,null,"VALOR TOTAL SIN IVA"]
["Contrato",null,null,null,null,null,null,"Elija un elemento",null,null,null,null,null,0,null,null,null,null,"Elija un valor",null,null,null,null,{"$f":"IF(OR(N165=\"0\",S165=\"Elija un valor\"),\"\",N165*S165)","v":""}]
["Planta",null,null,null,null,null,null,"Elija un elemento"]
[null,null,null,null,null,null,null,null,null,null,null,null,null,null,null,null,null,null,"TOTAL:",null,null,null,null,{"$f":"X165","v":""}]
[null,"Nota: En casos excepcionales donde no se puedan cumplir los rangos establecidos, las Direcciones Zonales deberán anexar el informe técnico de justificación,  en función de los parámetros otorgados por la Dirección de Certificación de Personas y sometido a la revisión y aprobación de la  Subdirección Técnica"]
[]
[]
[]
["7. FINANCIAMIENTO "]
["(Detallar la fuente de financiamiento para  llevar a cabo la ejecución del Convenio Específico y/o contrato)"]
[]
[]
[]
["Nota: De ser recursos públicos, se deberá previamente gestionar la respectiva certificación presupuestaria, misma que deberá ser identificada en el presente."]
[]
["Detalle Certificación presupuestaria: solo en los casos que aplique"]
[]
["Fecha: "]
["N°.:"]
["Valor: "]
[]
["CASO ESPECIAL:"]
[]
[null,null,null,"PROGRAMA DE GOBIERNO",null,null,null,null,null,null,"Elija un elemento"]
[null,null,null,"POLÍTICA PÚBLICA",null,null,null,null,null,null,"Elija un elemento"]
[]
["8. FORMA DE PAGO"]
[]
["Detallar la forma de pago  del servicio, ejemplo anticipo, pago al inicio, pago al final, pago contra entrega, etc."]
[]
[]
[]
[]
[]
["9. OBLIGACIONES "]
["(Detallar las obligaciones acordadas en la negociación)"]
[]
["a)      Obligaciones SECAP:"]
[]
[]
[]
[]
["b)      Obligaciones contraparte:"]
[]
[]
[]
["c)       Obligaciones conjuntas: "]
[]
[]
[]
[]
[]
["10. HABILITANTES"]
["(Verifique y marque con X en los casilleros que se aplique)"]
[]
["N°.",null,"DOCUMENTO",null,null,null,null,null,null,null,null,null,null,null,"VERIFICADO",null,null,"ANEXADO",null,"OBSERVACIONES"]
[1,null,"Instrumento constitutivo o estatuto vigente, legalmente registrados, tratándose de personas jurídicas de derecho privado"]
[2,null,"Nombramiento del representante legal, poder general/especial o documento que certifique su capacidad legal para suscribir"]
[3,null,"Copia de cédula de identidad y papeleta de votación o pasaporte"]
[4,null,"Copia o certificado electrónico del Registro Único de Contribuyentes RUC y/o Régimen Simplificado para Emprendedores y Negocios Populares (RIMPE)"]
[5,null,"Delegación para la firma de un Convenio por parte de la máxima autoridad de la contraparte (de ser el caso)"]
[6,null,"Certificación presupuestaria (convenio específico solo para sector público)"]
[7,null,"Acta/s de reunión de negociación para suscripción de posible Convenio"]
[8,null,"Para convenios específicos listado de participantes firmado por la contraparte"]
[9,null,"Oficio de solicitud de convenio (contraparte) de ser el caso"]
[10,null,"Informe de pertinencia para elaboración y/o modificación reación de diseños curriculares (de ser el caso),"]
[11,null,"Informe de pertinencia para la ampliación de perfl (de ser el caso)"]
[12,null,"Informe técnico de justificación para pago examinador - casos excepcionales (certificación)"]
[13,null,"Facilitadores y examinadores calificados y elegibles por el SECAP"]
[14,null,"Listado de cursos para programar."]
[15,null,"Listado de esquemas para certificar"]
[16,null,"Documento de justificación por descuento o exoneración de pago debidamente aprobado."]
[17,null,"Logo contraparte en formato jpg."]
[18,null,"Pronunciamiento D. Administrativa, CAF, D. Planificación, D. Talento Humano de ser el caso."]
[]
[]
["Nota: para el caso de convenios internacionales se aplicará el Formato de Convenio de Cooperación Insterinstitucional o Memorando de Entendmiento"]
[]
[]
[]
["11. REFERENCIAS "]
[]
["·         Resolución de los Valores por los Servicios Institucional de Certificación y Capacitación vigente;"]
["·         Instructivo de Negociación vigente;"]
["·         Método de cálculo para establecer el monto de pago a los examinadores en función del número de examinaciones realizadas, vigente;"]
["·         Método de cálculo para establecer el monto de pago a los facilitadores en función del número de horas de clase impartidas mensualmente y su nivel formación, vigente; y, "]
["·         Resolución de Instructivo de Convenios vigente."]
["·         Informe inicio de cursos con el mínimo de participantes requerido"]
[]
["12. RESPONSABLES "]
[]
[]
[]
[null,null,"Elaborado:",null,null,null,null,null,"Detallar el nombre",null,null,null,null,null,null,null,"Firma"]
[]
[null,null,null,null,null,null,null,null,"(Analista)"]
[]
[null,null,"Revisado:",null,null,null,null,null,"Detallar el nombre",null,null,null,null,null,null,null,"Firma"]
[]
[null,null,null,null,null,null,null,null,"(Coordinador SP7)"]
[]
[null,null,"Aprobado:",null,null,null,null,null,"Detallar el nombre",null,null,null,null,null,null,null,"Firma"]
[]
[null,null,null,null,null,null,null,null,"Director Nacional o Zonal"]
[]
[]
[]
["La Norma Técnica de Control Interno 410-7 “Firmas electrónicas”, señala que: “…Las entidades, organismos y dependencias del sector público, así como las personas jurídicas que actúen en virtud de una potestad estatal, ajustarán sus procedimientos y operaciones e incorporarán los medios técnicos necesarios, para permitir el uso de la firma electrónica de conformidad con la Ley de Comercio Electrónico, Firmas y Mensajes de Datos y su reglamento.” En tal sentido, la vigencia del presente instrumento será a partir de la fecha de la última firma electrónica inserta.”"]

{"sheet":"Valores","index":2,"n_rows":121,"n_cols":7,"rows_kept":121,"cut":false,"hidden":true,"merged":[]}
["Modalidad","Duración","Escenario","Región","Límite L","Valor Regular","1 vulnerable"]
["Presencial","1 a 16","Seminario","Continente",9,16,8]
["Presencial","1 a 16","Seminario","Galápagos",12,21.33,8]
["Presencial","17 a 29","Seminario","Continente",9,29,14.5]
["Presencial","17 a 29","Seminario","Galápagos",12,38.67,14.5]
["Virtual y On-line","1 a 16","Seminario","Continente",9,16,8]
["Virtual y On-line","1 a 16","Seminario","Galápagos",12,16,8]
["Virtual y On-line","17 a 29","Seminario","Continente",9,29,14.5]
["Virtual y On-line","17 a 29","Seminario","Galápagos",12,29,14.5]
["Presencial","30 a 45","Escenario 1","Continente",9,45,22.5]
["Presencial","30 a 45","Escenario 1","Galápagos",12,60,22.5]
["Presencial","46 a 60","Escenario 1","Continente",9,60,30]
["Presencial","46 a 60","Escenario 1","Galápagos",12,80,30]
["Presencial","61 a 75","Escenario 1","Continente",9,75,{"$f":"F14/2","v":37.5}]
["Presencial","61 a 75","Escenario 1","Galápagos",12,100,37.5]
["Presencial","76 a 100","Escenario 1","Continente",9,90,45]
["Presencial","76 a 100","Escenario 1","Galápagos",12,120,45]
["Virtual y On-line","30 a 45","Escenario 1","Continente",9,45,22.5]
["Virtual y On-line","30 a 45","Escenario 1","Galápagos",12,45,22.5]
["Virtual y On-line","46 a 60","Escenario 1","Continente",9,60,30]
["Virtual y On-line","46 a 60","Escenario 1","Galápagos",12,60,30]
["Virtual y On-line","61 a 75","Escenario 1","Continente",9,75,{"$f":"F22/2","v":37.5}]
["Virtual y On-line","61 a 75","Escenario 1","Galápagos",12,75,37.5]
["Virtual y On-line","76 a 100","Escenario 1","Continente",9,90,45]
["Virtual y On-line","76 a 100","Escenario 1","Galápagos",12,90,45]
["Presencial","30 a 45","Escenario 2","Continente",15,22.5,{"$f":"F26","v":22.5}]
["Presencial","30 a 45","Escenario 2","Galápagos",15,30,{"$f":"F27","v":30}]
["Presencial","30 a 45","Escenario 2","Continente",45,19.45,19.45]
["Presencial","30 a 45","Escenario 2","Galápagos",45,25.94,25.94]
["Presencial","30 a 45","Escenario 2","Continente",100,16.41,16.41]
["Presencial","30 a 45","Escenario 2","Galápagos",100,21.882999999999999,21.882999999999999]
["Presencial","46 a 60","Escenario 2","Continente",15,30,30]
["Presencial","46 a 60","Escenario 2","Galápagos",15,40,40]
["Presencial","46 a 60","Escenario 2","Continente",45,25.94,25.94]
["Presencial","46 a 60","Escenario 2","Galápagos",45,34.58,34.58]
["Presencial","46 a 60","Escenario 2","Continente",100,21.88,21.88]
["Presencial","46 a 60","Escenario 2","Galápagos",100,29.17,29.17]
["Presencial","61 a 75","Escenario 2","Continente",15,37.5,37.5]
["Presencial","61 a 75","Escenario 2","Galápagos",15,50,50]
["Presencial","61 a 75","Escenario 2","Continente",45,32.42,32.42]
["Presencial","61 a 75","Escenario 2","Galápagos",45,43.23,43.23]
["Presencial","61 a 75","Escenario 2","Continente",100,27.35,27.35]
["Presencial","61 a 75","Escenario 2","Galápagos",100,36.46,36.46]
["Presencial","76 a 90","Escenario 2","Continente",15,45,45]
["Presencial","76 a 90","Escenario 2","Galápagos",15,60,60]
["Presencial","76 a 90","Escenario 2","Continente",45,38.909999999999997,38.909999999999997]
["Presencial","76 a 90","Escenario 2","Galápagos",45,51.88,51.88]
["Presencial","76 a 90","Escenario 2","Continente",100,32.81,32.81]
["Presencial","76 a 90","Escenario 2","Galápagos",100,43.75,43.75]
["Virtual y On-line","30 a 45","Escenario 2","Continente",15,22.5,22.5]
["Virtual y On-line","30 a 45","Escenario 2","Galápagos",15,30,30]
["Virtual y On-line","30 a 45","Escenario 2","Continente",45,19.45,19.45]
["Virtual y On-line","30 a 45","Escenario 2","Galápagos",45,25.94,25.94]
["Virtual y On-line","30 a 45","Escenario 2","Continente",100,16.41,16.41]
["Virtual y On-line","30 a 45","Escenario 2","Galápagos",100,21.882999999999999,21.882999999999999]
["Virtual y On-line","46 a 60","Escenario 2","Continente",15,30,30]
["Virtual y On-line","46 a 60","Escenario 2","Galápagos",15,40,40]
["Virtual y On-line","46 a 60","Escenario 2","Continente",45,25.94,25.94]
["Virtual y On-line","46 a 60","Escenario 2","Galápagos",45,34.58,34.58]
["Virtual y On-line","46 a 60","Escenario 2","Continente",100,21.88,21.88]
["Virtual y On-line","46 a 60","Escenario 2","Galápagos",100,29.17,29.17]
["Virtual y On-line","61 a 75","Escenario 2","Continente",15,37.5,37.5]
["Virtual y On-line","61 a 75","Escenario 2","Galápagos",15,50,50]
["Virtual y On-line","61 a 75","Escenario 2","Continente",45,32.42,32.42]
["Virtual y On-line","61 a 75","Escenario 2","Galápagos",45,43.23,43.23]
["Virtual y On-line","61 a 75","Escenario 2","Continente",100,27.35,27.35]
["Virtual y On-line","61 a 75","Escenario 2","Galápagos",100,36.46,36.46]
["Virtual y On-line","76 a 90","Escenario 2","Continente",15,45,45]
["Virtual y On-line","76 a 90","Escenario 2","Galápagos",15,60,60]
["Virtual y On-line","76 a 90","Escenario 2","Continente",45,38.909999999999997,38.909999999999997]
["Virtual y On-line","76 a 90","Escenario 2","Galápagos",45,51.88,51.88]
["Virtual y On-line","76 a 90","Escenario 2","Continente",100,32.81,32.81]
["Virtual y On-line","76 a 90","Escenario 2","Galápagos",100,43.75,43.75]
["Presencial","30 a 45","Escenario 3","Continente",15,38.44,38.44]
["Presencial","30 a 45","Escenario 3","Galápagos",15,51.25,51.25]
["Presencial","30 a 45","Escenario 3","Continente",45,35.159999999999997,35.159999999999997]
["Presencial","30 a 45","Escenario 3","Galápagos",45,46.87,46.87]
["Presencial","30 a 45","Escenario 3","Continente",100,31.87,31.87]
["Presencial","30 a 45","Escenario 3","Galápagos",100,42.5,42.5]
["Presencial","46 a 60","Escenario 3","Continente",15,51.25,51.25]
["Presencial","46 a 60","Escenario 3","Galápagos",15,68.33,68.33]
["Presencial","46 a 60","Escenario 3","Continente",45,46.87,46.87]
["Presencial","46 a 60","Escenario 3","Galápagos",45,62.5,62.5]
["Presencial","46 a 60","Escenario 3","Continente",100,42.5,42.5]
["Presencial","46 a 60","Escenario 3","Galápagos",100,56.66,56.66]
["Presencial","61 a 75","Escenario 3","Continente",15,64.06,64.06]
["Presencial","61 a 75","Escenario 3","Galápagos",15,85.41,85.41]
["Presencial","61 a 75","Escenario 3","Continente",45,58.59,58.59]
["Presencial","61 a 75","Escenario 3","Galápagos",45,78.12,78.12]
["Presencial","61 a 75","Escenario 3","Continente",100,53.12,53.12]
["Presencial","61 a 75","Escenario 3","Galápagos",100,70.83,{"$f":"F91","v":70.83}]
["Presencial","76 a 90","Escenario 3","Continente",15,76.87,76.87]
["Presencial","76 a 90","Escenario 3","Galápagos",15,102.49,102.49]
["Presencial","76 a 90","Escenario 3","Continente",45,70.31,70.31]
["Presencial","76 a 90","Escenario 3","Galápagos",45,93.74,93.74]
["Presencial","76 a 90","Escenario 3","Continente",100,63.75,63.75]
["Presencial","76 a 90","Escenario 3","Galápagos",100,85,85]
["Virtual y On-line","30 a 45","Escenario 3","Continente",15,38.44,38.44]
["Virtual y On-line","30 a 45","Escenario 3","Galápagos",15,51.25,51.25]
["Virtual y On-line","30 a 45","Escenario 3","Continente",45,35.159999999999997,35.159999999999997]
["Virtual y On-line","30 a 45","Escenario 3","Galápagos",45,46.87,46.87]
["Virtual y On-line","30 a 45","Escenario 3","Continente",100,31.87,31.87]
["Virtual y On-line","30 a 45","Escenario 3","Galápagos",100,42.5,42.5]
["Virtual y On-line","46 a 60","Escenario 3","Continente",15,51.25,51.25]
["Virtual y On-line","46 a 60","Escenario 3","Galápagos",15,68.33,68.33]
["Virtual y On-line","46 a 60","Escenario 3","Continente",45,46.87,46.87]
["Virtual y On-line","46 a 60","Escenario 3","Galápagos",45,62.5,62.5]
["Virtual y On-line","46 a 60","Escenario 3","Continente",100,42.5,42.5]
["Virtual y On-line","46 a 60","Escenario 3","Galápagos",100,56.66,56.66]
["Virtual y On-line","61 a 75","Escenario 3","Continente",15,64.06,64.06]
["Virtual y On-line","61 a 75","Escenario 3","Galápagos",15,85.41,85.41]
["Virtual y On-line","61 a 75","Escenario 3","Continente",45,58.59,58.59]
["Virtual y On-line","61 a 75","Escenario 3","Galápagos",45,78.12,78.12]
["Virtual y On-line","61 a 75","Escenario 3","Continente",100,53.12,53.12]
["Virtual y On-line","61 a 75","Escenario 3","Galápagos",100,70.83,70.83]
["Virtual y On-line","76 a 90","Escenario 3","Continente",15,76.87,76.87]
["Virtual y On-line","76 a 90","Escenario 3","Galápagos",15,102.49,102.49]
["Virtual y On-line","76 a 90","Escenario 3","Continente",45,70.31,70.31]
["Virtual y On-line","76 a 90","Escenario 3","Galápagos",45,93.74,93.74]
["Virtual y On-line","76 a 90","Escenario 3","Continente",100,63.75,63.75]
["Virtual y On-line","76 a 90","Escenario 3","Galápagos",100,85,85]

{"sheet":"REQUERIMIENTO","index":3,"n_rows":447,"n_cols":28,"rows_kept":447,"cut":false,"hidden":false,"merged":[[161,23,161,27],[163,18,163,22],[162,18,162,22],[161,18,161,22],[164,0,165,27],[77,6,77,11],[77,12,77,21],[158,0,158,27],[160,0,163,6],[139,0,139,4],[143,0,143,4],[142,0,142,4],[141,0,141,4],[140,0,140,4],[139,5,139,6],[143,5,143,6],[142,5,142,6],[141,5,141,6],[140,5,140,6],[160,7,160,12],[160,13,160,17],[160,18,160,22],[160,23,160,27],[163,7,163,12],[162,7,162,12],[161,7,161,12],[163,13,163,17],[162,13,162,17],[161,13,161,17],[163,23,163,27],[162,23,162,27],[115,12,115,13],[109,14,109,15],[110,14,110,15],[111,14,111,15],[112,14,112,15],[140,7,140,13],[140,14,140,17],[140,18,140,22],[140,23,140,27],[143,7,143,13],[143,14,143,17],[143,18,143,22],[143,23,143,27],[141,7,141,13],[141,14,141,17],[141,18,141,22],[141,23,141,27],[170,23,170,27],[171,23,171,27],[172,23,172,27],[173,23,173,27],[155,18,155,22],[155,23,155,27],[144,18,144,22],[144,23,144,27],[146,0,146,27],[148,0,148,27],[150,0,150,6],[150,7,150,12],[150,13,150,17],[150,18,150,22],[150,23,150,27],[168,0,174,6],[169,18,169,22],[169,23,169,27],[174,7,174,12],[174,13,174,17],[174,18,174,22],[174,23,174,27],[170,7,170,12],[171,7,171,12],[172,7,172,12],[173,7,173,12],[170,13,170,17],[171,13,171,17],[172,13,172,17],[173,13,173,17],[170,18,170,22],[171,18,171,22],[172,18,172,22],[173,18,173,22],[426,0,426,27],[429,0,429,27],[432,2,435,7],[432,8,433,15],[432,16,435,23],[434,8,435,15],[415,0,415,27],[420,0,420,27],[422,0,422,27],[423,0,423,27],[424,0,424,27],[425,0,425,27],[446,0,449,25],[436,2,439,7],[436,8,437,15],[436,16,439,23],[438,8,439,15],[440,2,443,7],[440,8,441,15],[440,16,443,23],[442,8,443,15],[413,2,413,13],[413,14,413,16],[413,17,413,19],[413,20,413,27],[414,0,414,1],[414,2,414,13],[414,14,414,16],[414,17,414,19],[414,20,414,27],[413,0,413,1],[411,0,411,1],[411,2,411,13],[411,14,411,16],[411,17,411,19],[411,20,411,27],[412,0,412,1],[412,2,412,13],[412,14,412,16],[412,17,412,19],[412,20,412,27],[409,0,409,1],[409,2,409,13],[409,14,409,16],[409,17,409,19],[409,20,409,27],[410,0,410,1],[410,2,410,13],[410,14,410,16],[410,17,410,19],[410,20,410,27],[406,0,406,1],[406,2,406,13],[406,14,406,16],[406,17,406,19],[406,20,406,27],[407,0,408,1],[407,2,408,13],[407,14,408,16],[407,17,408,19],[407,20,408,27],[402,0,403,1],[402,2,403,13],[402,14,403,16],[402,17,403,19],[402,20,403,27],[404,0,405,1],[404,2,405,13],[404,14,405,16],[404,17,405,19],[404,20,405,27],[398,0,398,27],[399,0,399,27],[401,0,401,1],[401,2,401,13],[401,14,401,16],[401,17,401,19],[401,20,401,27],[392,7,392,13],[392,14,392,21],[393,7,393,13],[393,14,393,21],[394,7,394,13],[394,14,394,21],[386,7,386,13],[386,14,386,21],[390,7,390,13],[390,14,390,21],[391,7,391,13],[391,14,391,21],[383,7,383,13],[383,14,383,21],[384,7,384,13],[384,14,384,21],[385,7,385,13],[385,14,385,21],[372,0,372,27],[374,0,377,27],[380,0,380,27],[381,0,381,27],[382,7,382,13],[382,14,382,21],[358,0,359,27],[361,0,361,27],[362,0,363,27],[365,0,365,27],[366,0,367,27],[371,0,371,27],[343,0,343,27],[344,0,344,27],[346,0,349,27],[353,0,353,27],[354,0,354,27],[356,0,356,27],[328,0,328,27],[330,0,331,14],[330,15,331,27],[335,0,335,27],[336,0,336,27],[337,0,340,27],[312,0,312,27],[314,0,314,27],[315,0,315,27],[317,0,319,27],[322,0,324,27],[327,0,327,27],[309,0,309,13],[309,14,309,27],[310,0,310,13],[310,14,310,27],[311,0,311,13],[311,14,311,16],[311,17,311,21],[311,22,311,27],[306,0,306,13],[306,14,306,27],[307,0,307,13],[307,14,307,27],[308,0,308,9],[308,10,308,13],[308,14,308,23],[308,24,308,27],[303,0,303,13],[303,14,303,27],[304,0,304,13],[304,14,304,27],[305,0,305,13],[305,14,305,27],[299,0,299,27],[300,0,300,13],[300,14,300,27],[301,0,301,13],[301,14,301,27],[302,0,302,13],[302,14,302,27],[297,0,297,13],[297,14,297,27],[298,0,298,1],[298,3,298,4],[298,5,298,11],[298,13,298,14],[298,16,298,18],[298,19,298,20],[298,21,298,26],[294,0,294,8],[294,9,294,17],[294,18,294,27],[295,0,295,13],[295,14,295,27],[296,0,296,13],[296,14,296,27],[291,0,291,13],[291,14,291,27],[292,0,292,13],[292,14,292,27],[293,0,293,8],[293,9,293,17],[293,18,293,27],[290,0,290,4],[290,6,290,8],[290,9,290,23],[258,0,258,27],[259,0,259,27],[261,0,261,27],[263,0,263,27],[265,2,268,7],[265,8,266,15],[265,16,268,23],[267,8,268,15],[279,0,282,26],[288,0,288,27],[289,0,289,8],[289,9,289,17],[289,18,289,27],[269,2,272,7],[269,8,270,15],[269,16,272,23],[271,8,272,15],[273,2,276,7],[273,8,274,15],[273,16,276,23],[275,8,276,15],[248,0,248,27],[252,0,252,27],[254,0,254,27],[255,0,255,27],[256,0,256,27],[257,0,257,27],[244,0,244,1],[244,2,244,13],[244,14,244,16],[244,17,244,18],[244,19,244,27],[245,0,245,1],[245,2,245,13],[245,14,245,16],[245,17,245,18],[245,19,245,27],[242,0,242,1],[242,2,242,13],[242,14,242,16],[242,17,242,18],[242,19,242,27],[243,0,243,1],[243,2,243,13],[243,14,243,16],[243,17,243,18],[243,19,243,27],[240,0,240,1],[240,2,240,13],[240,14,240,16],[240,17,240,18],[240,19,240,27],[241,0,241,1],[241,2,241,13],[241,14,241,16],[241,17,241,18],[241,19,241,27],[238,0,238,1],[238,2,238,13],[238,14,238,16],[238,17,238,18],[238,19,238,27],[239,0,239,1],[239,2,239,13],[239,14,239,16],[239,17,239,18],[239,19,239,27],[236,0,236,1],[236,2,236,13],[236,14,236,16],[236,17,236,18],[236,19,236,27],[237,0,237,1],[237,2,237,13],[237,14,237,16],[237,17,237,18],[237,19,237,27],[234,0,234,1],[234,2,234,13],[234,14,234,16],[234,17,234,18],[234,19,234,27],[235,0,235,1],[235,2,235,13],[235,14,235,16],[235,17,235,18],[235,19,235,27],[232,0,232,1],[232,2,232,13],[232,14,232,16],[232,17,232,18],[232,19,232,27],[233,0,233,1],[233,2,233,13],[233,14,233,16],[233,17,233,18],[233,19,233,27],[230,0,230,1],[230,2,230,13],[230,14,230,16],[230,17,230,18],[230,19,230,27],[231,0,231,1],[231,2,231,13],[231,14,231,16],[231,17,231,18],[231,19,231,27],[228,0,228,1],[228,2,228,13],[228,14,228,16],[228,17,228,18],[228,19,228,27],[229,0,229,1],[229,2,229,13],[229,14,229,16],[229,17,229,18],[229,19,229,27],[219,0,220,27],[224,0,224,27],[225,0,225,27],[227,0,227,1],[227,2,227,13],[227,14,227,16],[227,17,227,18],[227,19,227,27],[207,0,207,27],[209,0,209,27],[211,0,212,27],[214,0,214,27],[215,0,216,27],[218,0,218,27],[196,3,196,9],[196,10,196,13],[198,0,198,27],[199,0,199,27],[200,0,203,27],[206,0,206,27],[187,0,187,27],[189,0,189,27],[190,0,190,27],[191,0,191,27],[193,0,194,27],[195,3,195,9],[195,10,195,13],[180,0,180,27],[181,0,184,27],[185,0,185,27],[151,0,151,6],[151,7,151,12],[151,13,151,17],[151,18,151,22],[151,23,151,27],[154,0,154,6],[154,7,154,12],[154,13,154,17],[154,18,154,22],[154,23,154,27],[176,0,177,27],[168,7,168,12],[168,13,168,17],[168,18,168,22],[168,23,168,27],[169,7,169,12],[169,13,169,17],[175,18,175,22],[175,23,175,27],[152,0,152,6],[152,7,152,12],[142,7,142,13],[142,14,142,17],[142,18,142,22],[142,23,142,27],[135,0,135,27],[137,0,137,27],[139,7,139,13],[139,14,139,17],[139,18,139,22],[139,23,139,27],[128,25,128,26],[129,19,129,22],[129,23,129,24],[132,0,132,27],[133,0,133,27],[129,25,129,26],[127,21,127,22],[127,23,127,24],[127,25,127,26],[128,1,128,6],[128,11,128,12],[128,13,128,14],[128,15,128,16],[128,17,128,18],[128,19,128,20],[128,21,128,22],[127,1,127,6],[127,11,127,12],[127,13,127,14],[127,15,127,16],[127,17,127,18],[127,19,127,20],[127,7,127,10],[128,7,128,10],[126,1,126,6],[126,11,126,12],[126,13,126,14],[126,15,126,16],[126,17,126,18],[126,19,126,20],[126,21,126,22],[126,23,126,24],[128,23,128,24],[126,25,126,26],[126,7,126,10],[124,23,124,24],[124,25,124,26],[123,7,123,10],[124,7,124,10],[125,1,125,6],[125,11,125,12],[125,13,125,14],[125,15,125,16],[125,17,125,18],[125,19,125,20],[125,21,125,22],[125,23,125,24],[125,25,125,26],[125,7,125,10],[124,1,124,6],[124,11,124,12],[124,13,124,14],[124,15,124,16],[124,17,124,18],[124,19,124,20],[124,21,124,22],[123,1,123,6],[123,11,123,12],[123,13,123,14],[115,2,115,3],[115,10,115,11],[115,6,115,9],[115,14,115,15],[123,15,123,16],[123,17,123,18],[123,19,123,20],[119,1,120,24],[122,11,122,14],[122,15,122,18],[122,19,122,22],[115,18,115,19],[115,20,115,21],[115,22,115,23],[115,24,115,25],[123,21,123,22],[123,23,123,24],[123,25,123,26],[115,26,115,27],[116,20,116,23],[116,24,116,25],[115,4,115,5],[115,16,115,17],[116,26,116,27],[113,18,113,19],[113,20,113,21],[113,22,113,23],[113,24,113,25],[113,26,113,27],[113,16,113,17],[114,4,114,5],[113,4,113,5],[114,18,114,19],[114,20,114,21],[114,22,114,23],[114,24,114,25],[114,26,114,27],[113,2,113,3],[114,2,114,3],[113,10,113,11],[114,10,114,11],[113,6,113,9],[114,6,114,9],[113,14,113,15],[114,14,114,15],[114,16,114,17],[113,12,113,13],[114,12,114,13],[112,26,112,27],[111,18,111,19],[111,20,111,21],[111,22,111,23],[111,24,111,25],[111,26,111,27],[111,16,111,17],[110,4,110,5],[111,2,111,3],[112,2,112,3],[111,10,111,11],[112,10,112,11],[111,6,111,9],[112,6,112,9],[112,4,112,5],[111,4,111,5],[112,16,112,17],[112,18,112,19],[112,20,112,21],[112,22,112,23],[112,24,112,25],[110,12,110,13],[111,12,111,13],[112,12,112,13],[109,2,109,3],[110,2,110,3],[109,10,109,11],[110,10,110,11],[109,6,109,9],[110,6,110,9],[109,24,109,25],[109,26,109,27],[108,12,108,13],[108,14,108,15],[109,12,109,13],[108,24,108,25],[108,26,108,27],[109,4,109,5],[109,16,109,17],[110,16,110,17],[110,18,110,19],[110,20,110,21],[110,22,110,23],[110,24,110,25],[110,26,110,27],[109,18,109,19],[109,20,109,21],[109,22,109,23],[107,16,107,19],[107,20,107,23],[108,4,108,5],[108,16,108,17],[108,18,108,19],[107,12,107,15],[108,2,108,3],[108,10,108,11],[108,6,108,9],[108,20,108,21],[108,22,108,23],[99,0,99,27],[102,0,102,27],[103,0,103,27],[104,1,105,24],[97,0,97,9],[97,10,97,18],[97,19,97,27],[98,0,98,9],[98,10,98,18],[98,19,98,27],[95,0,95,9],[95,10,95,18],[95,19,95,27],[96,0,96,9],[96,10,96,18],[96,19,96,27],[93,0,93,9],[93,10,93,18],[93,19,93,27],[94,0,94,9],[94,10,94,18],[94,19,94,27],[88,0,88,6],[88,7,88,13],[88,14,88,20],[88,21,88,27],[89,0,89,27],[91,0,91,27],[86,0,86,6],[86,7,86,13],[86,14,86,20],[86,21,86,27],[87,0,87,6],[87,7,87,13],[87,14,87,20],[87,21,87,27],[84,0,84,6],[84,7,84,13],[84,14,84,20],[84,21,84,27],[85,0,85,6],[85,7,85,13],[85,14,85,20],[85,21,85,27],[82,0,82,6],[82,7,82,13],[82,14,82,20],[82,21,82,27],[83,0,83,6],[83,7,83,13],[83,14,83,20],[83,21,83,27],[74,0,74,27],[75,0,75,27],[79,0,79,27],[81,0,81,6],[81,7,81,13],[81,14,81,20],[81,21,81,27],[64,0,64,5],[64,6,64,16],[64,17,64,27],[67,0,67,27],[68,0,68,27],[70,0,71,14],[70,15,71,27],[62,0,62,5],[62,6,62,16],[62,17,62,27],[63,0,63,5],[63,6,63,16],[63,17,63,27],[60,0,60,5],[60,6,60,16],[60,17,60,27],[61,0,61,5],[61,6,61,16],[61,17,61,27],[57,1,57,17],[58,0,58,1],[58,2,58,17],[59,0,59,2],[59,4,59,5],[59,10,59,11],[59,16,59,17],[55,0,55,5],[55,6,55,16],[55,17,55,27],[56,0,56,5],[56,6,56,16],[56,17,56,27],[53,0,53,5],[53,6,53,16],[53,17,53,27],[54,0,54,5],[54,6,54,16],[54,17,54,27],[42,0,42,27],[43,0,47,27],[50,0,50,27],[51,0,51,27],[52,0,52,5],[52,6,52,16],[52,17,52,27],[37,0,37,13],[37,14,37,27],[38,0,38,13],[38,14,38,17],[38,18,38,22],[38,23,38,27],[35,0,35,9],[35,10,35,13],[35,14,35,23],[35,24,35,27],[36,0,36,13],[36,14,36,27],[32,0,32,13],[32,14,32,27],[33,0,33,13],[33,14,33,27],[34,0,34,13],[34,14,34,27],[29,0,29,13],[29,14,29,27],[30,0,30,13],[30,14,30,27],[31,0,31,13],[31,14,31,27],[25,21,25,26],[26,0,26,27],[27,0,27,13],[27,14,27,27],[28,0,28,13],[28,14,28,27],[25,0,25,1],[25,3,25,4],[25,5,25,11],[25,13,25,14],[25,16,25,18],[25,19,25,20],[17,0,17,4],[17,6,17,8],[17,9,17,23],[22,0,22,13],[22,14,22,27],[23,0,23,13],[23,14,23,27],[24,0,24,13],[24,14,24,27],[20,0,20,8],[20,9,20,17],[20,18,20,27],[21,0,21,8],[21,9,21,17],[21,18,21,27],[152,13,152,17],[152,18,152,22],[152,23,152,27],[153,0,153,6],[153,7,153,12],[153,13,153,17],[153,18,153,22],[153,23,153,27],[2,0,6,8],[2,9,6,20],[2,21,3,27],[4,21,5,27],[6,21,6,27],[16,0,16,8],[16,9,16,17],[16,18,16,27],[18,0,18,13],[18,14,18,27],[19,0,19,13],[19,14,19,27],[9,5,10,10],[9,11,10,21],[11,6,12,20],[15,0,15,27]]}
[]
[]
["\n",null,null,null,null,null,null,null,null,"REQUERIMIENTO DE VIABILIDAD ",null,null,null,null,null,null,null,null,null,null,null,"Código: GES-PS-02-01-FOR01"]
[]
[null,null,null,null,null,null,null,null,null,null,null,null,null,null,null,null,null,null,null,null,null,"Versión: 1.2"]
[]
[null,null,null,null,null,null,null,null,null,null,null,null,null,null,null,null,null,null,null,null,null,"Fecha:  20.04.2026"]
[]
[]
[null,null,null,null,null,"TIPO DE ACUERDO",null,null,null,null,null,"CONTRATO"]
[]
[null,null,null,null,null,null,"Elija un elemento según corresponda"]
[]
[]
[]
["1. INFORMACIÓN GENERAL"]
["UNIDAD OPERATIVA SECAP",null,null,null,null,null,null,null,null,{"$f":"IF(OR(S17=\"ZONA 1\",S17=\"ZONA 2\",S17=\"ZONA 3\",S17=\"ZONA 4\",S17=\"ZONA 5\",S17=\"ZONA 6\",S17=\"ZONA 7\"),\"DIRECCIÓN ZONAL\",IF(OR(S17=\"CAPACITACIÓN Y PROMOCIÓN DE SERVICIOS\",S17=\"CERTIFICACIÓN DE PERSONAS\"),\"DIRECCIÓN NACIONAL\",\"\"))","v":""},null,null,null,null,null,null,null,null,"ELIJA UN ELEMENTO"]
["REQUERIMIENTO",null,null,null,null,"Nro.",null,null,null,{"$f":"IF(AND(G18>0,Y18=\"RV\",Z18<>\"\",AA18>0,AA18<13,AB18>2023),CONCATENATE(G18,\"-\",Y18,\"-\",Z18,\"-\",AA18,\"-\",AB18),\"\")","v":""},null,null,null,null,null,null,null,null,null,null,null,null,null,null,"RV",{"$f":"IF(S17=\"CAPACITACIÓN Y PROMOCIÓN DE SERVICIOS\",\"DCPS\",IF(S17=\"CERTIFICACIÓN DE PERSONAS\",\"DCP\",IF(S17=\"ZONA 1\",\"Z1\",IF(S17=\"ZONA 2\",\"Z2\",IF(S17=\"ZONA 3\",\"Z3\",IF(S17=\"ZONA 4\",\"Z4\",IF(S17=\"ZONA 5\",\"Z5\",IF(S17=\"ZONA 6\",\"Z6\",IF(S17=\"ZONA 7\",\"Z7\",\"\")))))))))","v":""},{"$f":"MONTH(TODAY())","v":4},{"$f":"YEAR(TODAY())","v":2026}]
["CIUDAD:"]
["CENTRO OPERATIVO:"]
["COBERTURA GEOGRÁFICA:\n",null,null,null,null,null,null,null,null,"Elija un elemento",null,null,null,null,null,null,null,null,"(detallar las zonas, provincias, cantones o parroquias)"]
["PLAZO:\n (no puede ser mayor a 1 año)",null,null,null,null,null,null,null,null,"ELIJA UN ELEMENTO",null,null,null,null,null,null,null,null,"(detallar el tiempo de plazo)"]
["CARGO DE LA PERSONA QUE SUSCRIBE:POR PARTE DEL SECAP",null,null,null,null,null,null,null,null,null,null,null,null,null,"Elija un elemento"]
["NOMBRE",null,null,null,null,null,null,null,null,null,null,null,null,null,"(detallar el nombre)"]
["LUGAR DE SUSCRIPCIÓN",null,null,null,null,null,null,null,null,null,null,null,null,null,"(detallar el lugar)"]
[]
["2. IDENTIFICACIÓN DE LA CONTRAPARTE"]
["DESCRIPCIÓN",null,null,null,null,null,null,null,null,null,null,null,null,null,"RESPUESTA"]
["RAZÓN SOCIAL"]
["RUC"]
["TIPO DE CONTRAPARTE",null,null,null,null,null,null,null,null,null,null,null,null,null,"Elegir un elemento"]
["NOMBRE DEL REPRESENTANTE LEGAL"]
["NÚMERO DE CÉDULA DEL REPRESENTANTE LEGAL "]
["DIRECCIÓN DE LA INSTITUCIÓN"]
["TELÉFONO DE LA INSTITUCIÓN"]
["INICIO DE ACTIVIDADES SUPERIORES A 1 AÑO\n(información desde el RUC)",null,null,null,null,null,null,null,null,null,"Elija un elemento",null,null,null,"TIEMPO DE ACTIVIDAD",null,null,null,null,null,null,null,null,null,"(detallar el tiempo)"]
["LA CONTRAPARTE TIENE VÍNCULO FAMILIAR CON ALGÚN FUNCIONARIO DEL SECAP RELACIONADO A ESTA NEGOCIACIÓN",null,null,null,null,null,null,null,null,null,null,null,null,null,"Elija un elemento"]
["LA CONTRAPARTE PERTENECE A ALGÚN FUNCIONARIO DEL SECAP VINCULADO A ESTA NEGOCIACIÓN",null,null,null,null,null,null,null,null,null,null,null,null,null,"Elija un elemento"]
["SE GENERÓ INHABILIDAD POR INCUMPLIMIENTO EN CONVENIOS Y/O ACUERDOS SUSCRITOS CON ANTERIORIDAD",null,null,null,null,null,null,null,null,null,null,null,null,null,"Elija un elemento",null,null,null,"Si la respuesta es afirmativa colocar fecha",null,null,null,null,"(colocar fecha inhabilidad)"]
[]
[]
[]
["3. OBJETO"]
["(Detallar los servicios que dan origen al Convenio Específico y/o Contrato;  motivo o finalidad de la suscripción, explica y justifica)"]
[]
[]
[]
[]
[]
[]
["4. SUGERENCIA PARA LA ADMINISTRACIÓN  Y COMISIÓN TÉCNICA: "]
["(Complete la información)"]
["SECAP",null,null,null,null,null,"ADMINISTRADOR",null,null,null,null,null,null,null,null,null,null,"COMISIÓN TÉCNICA"]
["NOMBRE"]
["CARGO"]
["NÚMERO TELEFÓNICO"]
["EMAIL"]
[]
[]
[]
["CONTRAPARTE",null,null,null,null,null,"ADMINISTRADOR",null,null,null,null,null,null,null,null,null,null,"COMISIÓN TÉCNICA"]
["NOMBRE"]
["CARGO"]
["NÚMERO TELEFÓNICO"]
["EMAIL"]
[]
[]
["5. SERVICIO REQUERIDO:"]
["(Determine lo que se aplique y llene la información requerida)"]
[]
["Servicio",null,null,null,null,null,null,null,null,null,null,null,null,null,null,"ELIJA EL SERVICIO"]
[]
[]
[]
["5.1 ACTIVIDAD COMPLEMENTARIA"]
["(Completar la información de ser el caso)"]
[]
[null,null,null,null,null,null,"Informe de Pertinencia Nro."]
[]
["a)     CAPACITACIÓN:  Elaboración y/o modificación diseño curricular"]
[]
["DISEÑOS CURRICULARES",null,null,null,null,null,null,"DURACIÓN",null,null,null,null,null,null,"ÁREA CAPACITACIÓN",null,null,null,null,null,null,"EXPERTO"]
["Elegir un elemento",null,null,null,null,null,null,null,null,null,null,null,null,null,null,null,null,null,null,null,null,"Elija un elemento"]
["Elegir un elemento",null,null,null,null,null,null,null,null,null,null,null,null,null,null,null,null,null,null,null,null,"Elija un elemento"]
["Elegir un elemento",null,null,null,null,null,null,null,null,null,null,null,null,null,null,null,null,null,null,null,null,"Elija un elemento"]
["Elegir un elemento",null,null,null,null,null,null,null,null,null,null,null,null,null,null,null,null,null,null,null,null,"Elija un elemento"]
["Elegir un elemento",null,null,null,null,null,null,null,null,null,null,null,null,null,null,null,null,null,null,null,null,"Elija un elemento"]
["Elegir un elemento",null,null,null,null,null,null,null,null,null,null,null,null,null,null,null,null,null,null,null,null,"Elija un elemento"]
["Elegir un elemento",null,null,null,null,null,null,null,null,null,null,null,null,null,null,null,null,null,null,null,null,"Elija un elemento"]
["Nota: previo a la aplicación de este servicio debe constar el respectivo Informe de Pertinencia aprobado"]
[]
["b)     CERTIFICACIÓN: Ampliación esquema de perfil"]
[]
["ESQUEMA DE PERFIL",null,null,null,null,null,null,null,null,null,"ÁREA",null,null,null,null,null,null,null,null,"EXPERTO"]
["Elija un elemento",null,null,null,null,null,null,null,null,null,null,null,null,null,null,null,null,null,null,"Elija un elemento"]
["Elija un elemento",null,null,null,null,null,null,null,null,null,null,null,null,null,null,null,null,null,null,"Elija un elemento"]
["Elija un elemento",null,null,null,null,null,null,null,null,null,null,null,null,null,null,null,null,null,null,"Elija un elemento"]
["Elija un elemento",null,null,null,null,null,null,null,null,null,null,null,null,null,null,null,null,null,null,"Elija un elemento"]
["Elija un elemento",null,null,null,null,null,null,null,null,null,null,null,null,null,null,null,null,null,null,"Elija un elemento"]
["Nota: previo a la aplicación de este servicio debe constar el respectivo Informe de Pertinencia aprobado"]
[]
[]
["6. NEGOCIACIÓN:"]
["Detallar de acuerdo a la Negociacón realizada"]
[null,"1) CAPACITACIÓN"]
[]
[]
[null,null,null,null,null,null,null,null,null,null,null,null,"Sin vulnerabilidad",null,null,null,"1 Vulnerabilidad",null,null,null,"2 Vulnerabilidades"]
["Mes de ejecucíon (MM-AA)","Cód. diseño","Modalidad",null,"Horas",null,"Escenario del Instructivo de negociación",null,null,null,"Región",null,"Nro. Participantes",null,"Valor por participante",null,"Nro. Participantes",null,"Valor por participante",null,"Nro. Participantes",null,"Valor por participante",null,"Total Participantes",null,"Valor por curso"]
[null,null,"Elija un elemento",null,"Elija un elemento",null,"Elija un elemento",null,null,null,"Elija un elemento",null,null,null,null,null,null,null,null,null,null,null,{"$f":"IF(OR(U110=\"\",U110=0),\"\",0)","v":""},null,{"$f":"IF(AND(OR(G110=\"Seminario\",G110=\"Escenario 1\"),K110=\"Continente\",M110>=9),(M110+Q110+U110),IF(AND(OR(G110=\"Seminario\",G110=\"Escenario 1\"),K110=\"Galápagos\",M110>=12),(M110+Q110+U110),IF(AND(OR(G110=\"Escenario 2\",G110=\"Escenario 3\",G110=\"Escenario 4\",G110=\"Escenario 5\",,G110=\"Escenario 6\",G110=\"Escenario 7\",G110=\"Escenario 8\",G110=\"Escenario 1 (Volumen)\"),(M110+Q110)>=15),(M110+Q110+U110),\"Verificar\")))","v":"Verificar"},null,{"$f":"IF(Y110=\"Verificar\",0,IF(OR(O110=\"\",O110=0),0,IF(AND(Q110>0,S110=0),0,SUM((M110*O110)+(Q110*S110)))))","v":0}]
[null,null,"Elija un elemento",null,"Elija un elemento",null,"Elija un elemento",null,null,null,"Elija un elemento",null,null,null,null,null,null,null,null,null,null,null,"",null,{"$f":"IF(AND(OR(G111=\"Seminario\",G111=\"Escenario 1\"),K111=\"Continente\",M111>=9),(M111+Q111+U111),IF(AND(OR(G111=\"Seminario\",G111=\"Escenario 1\"),K111=\"Galápagos\",M111>=12),(M111+Q111+U111),IF(AND(OR(G111=\"Escenario 2\",G111=\"Escenario 3\",G111=\"Escenario 4\",G111=\"Escenario 5\",,G111=\"Escenario 6\",G111=\"Escenario 7\",G111=\"Escenario 8\",G111=\"Escenario 1 (Volumen)\"),(M111+Q111)>=15),(M111+Q111+U111),\"Verificar\")))","v":"Verificar"},null,{"$f":"IF(Y111=\"Verificar\",0,IF(OR(O111=\"\",O111=0),0,IF(AND(Q111>0,S111=0),0,SUM((M111*O111)+(Q111*S111)))))","v":0}]
[null,null,"Elija un elemento",null,"Elija un elemento",null,"Elija un elemento",null,null,null,"Elija un elemento",null,null,null,null,null,null,null,null,null,null,null,"",null,"Verificar",null,0]
[null,null,"Elija un elemento",null,"Elija un elemento",null,"Elija un elemento",null,null,null,"Elija un elemento",null,null,null,null,null,null,null,null,null,null,null,"",null,"Verificar",null,0]
[null,null,"Elija un elemento",null,"Elija un elemento",null,"Elija un elemento",null,null,null,"Elija un elemento",null,null,null,null,null,null,null,null,null,null,null,"",null,"Verificar",null,0]
[null,null,"Elija un elemento",null,"Elija un elemento",null,"Elija un elemento",null,null,null,"Elija un elemento",null,null,null,null,null,null,null,null,null,null,null,"",null,"Verificar",null,0]
[null,null,"Elija un elemento",null,"Elija un elemento",null,"Elija un elemento",null,null,null,"Elija un elemento",null,null,null,null,null,null,null,null,null,null,null,"",null,"Verificar",null,0]
[null,null,null,null,null,null,null,null,null,null,null,null,null,null,null,null,null,null,null,null,"TOTAL:",null,null,null,{"$f":"SUM(Y110:Z116)","v":0},null,{"$f":"SUM(AA110:AB116)","v":0}]
[]
[]
[null,"2) CERTIFICACIÓN"]
[]
[]
[null,null,null,null,null,null,null,null,null,null,null,"Sin vulnerabilidad",null,null,null,"1 Vulnerabilidad",null,null,null,"2 Vulnerabilidades"]
["Mes de ejecucíon (MM-AA)","Nombre perfil",null,null,null,null,null,"Escenario del Instructivo de negociación",null,null,null,"Nro. Participantes",null,"Valor por participante",null,"Nro. Participantes",null,"Valor por participante",null,"Nro. Participantes",null,"Valor por participante",null,"Total Participantes",null,"Valor por perfil"]
[null,null,null,null,null,null,null,"Elija un elemento",null,null,null,null,null,null,null,null,null,null,null,null,null,{"$f":"IF(OR(T125=\"\",T125=0),\"\",0)","v":""},null,{"$f":"IF(AND(OR(H125=\"Escenario 1\",H125=\"Escenario 2\"),L125>=20),L125+P125+T125,IF(AND(H125=\"Escenario 3\",(L125+P125)>=15),L125+P125+T125,IF(AND(H125=\"Escenario 4\",(L125+P125)>=20),L125+P125+T125,IF(AND(H125=\"Caso Excepcional\",L125>=5,L125<=14),L125+P125+T125,\"Verificar\"))))","v":"Verificar"},null,{"$f":"IF(X125=\"Verificar\",0,IF(OR(N125=0,N125=\"\"),0,IF(AND(P125>0,R125=0),0,SUM((L125*N125)+(P125*R125)))))","v":0}]
[null,null,null,null,null,null,null,"Elija un elemento",null,null,null,null,null,null,null,null,null,null,null,null,null,{"$f":"IF(OR(T126=\"\",T126=0),\"\",0)","v":""},null,{"$f":"IF(AND(OR(H126=\"Escenario 1\",H126=\"Escenario 2\"),L126>=20),L126+P126+T126,IF(AND(H126=\"Escenario 3\",(L126+P126)>=15),L126+P126+T126,IF(AND(H126=\"Escenario 4\",(L126+P126)>=20),L126+P126+T126,IF(AND(H126=\"Caso Excepcional\",L126>=5,L126<=14),L126+P126+T126,\"Verificar\"))))","v":"Verificar"},null,{"$f":"IF(X126=\"Verificar\",0,IF(OR(N126=0,N126=\"\"),0,IF(AND(P126>0,R126=0),0,SUM((L126*N126)+(P126*R126)))))","v":0}]
[null,null,null,null,null,null,null,"Elija un elemento",null,null,null,null,null,null,null,null,null,null,null,null,null,"",null,"Verificar",null,0]
[null,null,null,null,null,null,null,"Elija un elemento",null,null,null,null,null,null,null,null,null,null,null,null,null,"",null,"Verificar",null,0]
[null,null,null,null,null,null,null,"Elija un elemento",null,null,null,null,null,null,null,null,null,null,null,null,null,"",null,"Verificar",null,0]
[null,null,null,null,null,null,null,null,null,null,null,null,null,null,null,null,null,null,null,"TOTAL:",null,null,null,{"$f":"SUM(X125:Y129)","v":0},null,{"$f":"SUM(Z125:AA129)","v":0}]
[]
[]
["6,1.  EGRESOS EN CAPACITACIÓN Y CERTIFICACIÓN:"]
["(Complete la información) "]
[]
["-          EGRESOS CAPACITACIÓN:"]
[]
["Completar de acuerdo a la negociación"]
[]
["Tipo de facilitador (SECAP)",null,null,null,null,"Cód. Diseño",null,"Nivel de facilitador",null,null,null,null,null,null,"N° Facilitadores",null,null,null,"VALOR SIN IVA",null,null,null,null,"VALOR TOTAL CON IVA"]
["Contrato",null,null,null,null,null,null,"Elija un elemento",null,null,null,null,null,null,null,null,null,null,"Elija un valor",null,null,null,null,{"$f":"IF(OR(O141=\"0\",S141=\"Elija un valor\"),\"\",((O141*S141)+((S141*O141)*0.15)))","v":""}]
["Contrato",null,null,null,null,null,null,"Elija un elemento",null,null,null,null,null,null,null,null,null,null,"Elija un valor",null,null,null,null,{"$f":"IF(OR(O142=\"0\",S142=\"Elija un valor\"),\"\",((O142*S142)+((S142*O142)*0.15)))","v":""}]
["Contrato",null,null,null,null,null,null,"Elija un elemento",null,null,null,null,null,null,null,null,null,null,"Elija un valor",null,null,null,null,{"$f":"IF(OR(O143=\"0\",S143=\"Elija un valor\"),\"\",((O143*S143)+((S143*O143)*0.15)))","v":""}]
["Planta",null,null,null,null,null,null,"Elija un elemento"]
[null,null,null,null,null,null,null,null,null,null,null,null,null,null,null,null,null,null,"TOTAL:",null,null,null,null,{"$f":"SUM(X141:AB143)","v":0}]
[]
["-          EGRESOS CERTIFICACIÓN:"]
[]
["Completar de acuerdo a la negociación"]
[]
["Tipo de Examinador (SECAP)",null,null,null,null,null,null,"Nivel del Examinador",null,null,null,null,null,"N° Examinadores",null,null,null,null,"Valor sin IVA",null,null,null,null,"VALOR TOTAL CON IVA"]
["Contrato",null,null,null,null,null,null,"Elija un elemento",null,null,null,null,null,null,null,null,null,null,"Elija un valor",null,null,null,null,{"$f":"IF(OR(N152=\"0\",S152=\"Elija un valor\"),\"\",((N152*S152)+((S152*N152)*0.15)))","v":""}]
["Contrato",null,null,null,null,null,null,"Elija un elemento",null,null,null,null,null,null,null,null,null,null,"Elija un valor",null,null,null,null,{"$f":"IF(OR(N153=\"0\",S153=\"Elija un valor\"),\"\",((N153*S153)+((S153*N153)*0.15)))","v":""}]
["Contrato",null,null,null,null,null,null,"Elija un elemento",null,null,null,null,null,null,null,null,null,null,"Elija un valor",null,null,null,null,{"$f":"IF(OR(N154=\"0\",S154=\"Elija un valor\"),\"\",((N154*S154)+((S154*N154)*0.15)))","v":""}]
["Planta",null,null,null,null,null,null,"Elija un elemento"]
[null,null,null,null,null,null,null,null,null,null,null,null,null,null,null,null,null,null,"TOTAL:",null,null,null,null,{"$f":"SUM(X152:AB154)","v":0}]
[]
[]
["CASOS EXCEPCIONALES DE EGRESO"]
[]
["PAGO FACILITADOES CASOS ESPECIALES",null,null,null,null,null,null,"Nombre del Curso",null,null,null,null,null,"Nro. Horas",null,null,null,null,"Valor sin IVA",null,null,null,null,"VALOR TOTAL CON IVA"]
[]
[]
[]
["Nota: En casos excepcionales, imputables a la institución, se calculará un pago proporcional en función de las horas de clase impartidas, usando como regla general que 60 horas de clase equivalen a USD 527,00 más el IVA, salvo para la región insular, que equivale a USD 950,18 más el IVA."]
[]
[]
[]
["PAGO EXAMINADOR CASOS ESPECIALES",null,null,null,null,null,null,"Nombre del Esquema",null,null,null,null,null,"N° examinaciones",null,null,null,null,"Valor sin IVA",null,null,null,null,"VALOR TOTAL CON IVA"]
[null,null,null,null,null,null,null,null,null,null,null,null,null,null,null,null,null,null,"Elija un valor",null,null,null,null,{"$f":"IF(OR(N170=\"0\",S170=\"Elija un valor\"),\"\",((N170*S170)+((S170*N170)*0.15)))","v":""}]
[null,null,null,null,null,null,null,null,null,null,null,null,null,null,null,null,null,null,"Elija un valor",null,null,null,null,{"$f":"IF(OR(N171=\"0\",S171=\"Elija un valor\"),\"\",((N171*S171)+((S171*N171)*0.15)))","v":""}]
[null,null,null,null,null,null,null,null,null,null,null,null,null,null,null,null,null,null,"Elija un valor",null,null,null,null,""]
[null,null,null,null,null,null,null,null,null,null,null,null,null,null,null,null,null,null,"Elija un valor",null,null,null,null,""]
[null,null,null,null,null,null,null,null,null,null,null,null,null,null,null,null,null,null,"Elija un valor",null,null,null,null,""]
[]
[null,null,null,null,null,null,null,null,null,null,null,null,null,null,null,null,null,null,"TOTAL:",null,null,null,null,{"$f":"SUM(X170:AB174)","v":0}]
["Nota: En casos excepcionales donde no se puedan cumplir los rangos establecidos, las Direcciones Zonales deberán anexar el informe técnico de justificación,  en función de los parámetros otorgados por la Dirección de Certificación de Personas y sometido a la revisión y aprobación de la  Subdirección Técnica"]
[]
[]
[]
["7. FINANCIAMIENTO "]
["(Detallar la fuente de financiamiento para  llevar a cabo la ejecución del Convenio Específico y/o contrato)"]
[]
[]
[]
["Nota: De ser recursos públicos, se deberá previamente gestionar la respectiva certificación presupuestaria, misma que deberá ser identificada en el presente."]
[]
["Detalle Certificación presupuestaria: solo en los casos que aplique"]
[]
["Fecha: "]
["N°.:"]
["Valor: "]
[]
["CASO ESPECIAL:"]
[]
[null,null,null,"PROGRAMA DE GOBIERNO",null,null,null,null,null,null,"Elija un elemento"]
[null,null,null,"POLÍTICA PÚBLICA",null,null,null,null,null,null,"Elija un elemento"]
[]
["8. FORMA DE PAGO"]
[]
["Detallar la forma de pago  del servicio, ejemplo anticipo, pago al inicio, pago al final, pago contra entrega, etc."]
[]
[]
[]
[]
[]
["9. OBLIGACIONES "]
["(Detallar las obligaciones acordadas en la negociación)"]
[]
["a)      Obligaciones SECAP:"]
[]
[]
[]
[]
["b)      Obligaciones contraparte:"]
[]
[]
[]
["c)       Obligaciones conjuntas: "]
[]
[]
[]
[]
[]
["10. HABILITANTES"]
["(Verifique y marque con X en los casilleros que se aplique)"]
[]
["N°.",null,"DOCUMENTO",null,null,null,null,null,null,null,null,null,null,null,"VERIFICADO",null,null,"ANEXADO",null,"OBSERVACIONES"]
[1,null,"Instrumento constitutivo o estatuto vigente, legalmente registrados, tratándose de personas jurídicas de derecho privado"]
[2,null,"Nombramiento del representante legal, poder general/especial o documento que certifique su capacidad legal para suscribir"]
[3,null,"Copia de cédula de identidad y papeleta de votación o pasaporte"]
[4,null,"Copia o certificado electrónico del Registro Único de Contribuyentes RUC y/o Régimen Simplificado para Emprendedores y Negocios Populares (RIMPE)"]
[5,null,"Delegación para la firma de un Convenio por parte de la máxima autoridad de la contraparte (de ser el caso)"]
[6,null,"Certificación presupuestaria (convenio específico solo para sector público)"]
[7,null,"Acta/s de reunión de negociación para suscripción de posible Convenio"]
[8,null,"Para convenios específicos listado de participantes firmado por la contraparte"]
[9,null,"Oficio de solicitud de convenio (contraparte) de ser el caso"]
[10,null,"Informe de pertinencia para elaboración y/o modificación reación de diseños curriculares (de ser el caso),"]
[11,null,"Informe de pertinencia para la ampliación de perfl (de ser el caso)"]
[12,null,"Informe técnico de justificación para pago examinador - casos excepcionales (certificación)"]
[13,null,"Facilitadores y examinadores calificados y elegibles por el SECAP"]
[14,null,"Listado de cursos para programar."]
[15,null,"Listado de esquemas para certificar"]
[16,null,"Documento de justificación por descuento o exoneración de pago debidamente aprobado."]
[17,null,"Logo contraparte en formato jpg."]
[18,null,"Pronunciamiento D. Administrativa, CAF, D. Planificación, D. Talento Humano de ser el caso."]
[]
[]
["Nota: para el caso de convenios internacionales se aplicará el Formato de Convenio de Cooperación Insterinstitucional o Memorando de Entendmiento"]
[]
[]
[]
["11. REFERENCIAS "]
[]
["·         Resolución de los Valores por los Servicios Institucional de Certificación y Capacitación vigente;"]
["·         Instructivo de Negociación vigente;"]
["·         Método de cálculo para establecer el monto de pago a los examinadores en función del número de examinaciones realizadas, vigente;"]
["·         Método de cálculo para establecer el monto de pago a los facilitadores en función del número de horas de clase impartidas mensualmente y su nivel formación, vigente; y, "]
["·         Resolución de Instructivo de Convenios vigente."]
["·         Informe inicio de cursos con el mínimo de participantes requerido"]
[]
["12. RESPONSABLES "]
[]
[]
[]
[null,null,"Elaborado:",null,null,null,null,null,"Detallar el nombre",null,null,null,null,null,null,null,"Firma"]
[]
[null,null,null,null,null,null,null,null,"(Analista)"]
[]
[null,null,"Revisado:",null,null,null,null,null,"Detallar el nombre",null,null,null,null,null,null,null,"Firma"]
[]
[null,null,null,null,null,null,null,null,"(Coordinador SP7)"]
[]
[null,null,"Aprobado:",null,null,null,null,null,"Detallar el nombre",null,null,null,null,null,null,null,"Firma"]
[]
[null,null,null,null,null,null,null,null,"Director Nacional o Zonal"]
[]
[]
[]
["La Norma Técnica de Control Interno 410-17 “Firmas electrónicas”, señala que: “…Las entidades, organismos y dependencias del sector público, así como las personas jurídicas que actúen en virtud de una potestad estatal, ajustarán sus procedimientos y operaciones e incorporarán los medios técnicos necesarios, para permitir el uso de la firma electrónica de conformidad con la Ley de Comercio Electrónico, Firmas y Mensajes de Datos y su reglamento.” En tal sentido, la vigencia del presente instrumento será a partir de la fecha de la última firma electrónica inserta.”"]
[]
[]
[]
[]
[]
[]
[]
[]
["1. INFORMACIÓN GENERAL"]
["UNIDAD OPERATIVA DEL SECAP",null,null,null,null,null,null,null,null,{"$f":"IF(OR(S290=\"ZONA 1\",S290=\"ZONA 2\",S290=\"ZONA 3\",S290=\"ZONA 4\",S290=\"ZONA 5\",S290=\"ZONA 6\",S290=\"ZONA 7\"),\"DIRECCIÓN ZONAL\",IF(OR(S290=\"CAPACITACIÓN Y PROMOCIÓN DE SERVICIOS\",S290=\"CERTIFICACIÓN DE PERSONAS\",S290=\"DISEÑO PEDAGÓGICO\",S290=\"EVALUACIÓN\",S290=\"ESTUDIOS\"),\"DIRECCIÓN NACIONAL\",\"\"))","v":""},null,null,null,null,null,null,null,null,"ELIJA UN ELEMENTO"]
["REQUERIMIENTO Nro.",null,null,null,null,"Nro.",null,null,null,{"$f":"IF(AND(G291>0,Y291=\"SECAP\",Z291<>\"\",AA291>0,AA291<13,AB291>2023),CONCATENATE(G291,\"-\",Y291,\"-\",Z291,\"-\",AA291,\"-\",AB291),\"\")","v":""},null,null,null,null,null,null,null,null,null,null,null,null,null,null,"SECAP",{"$f":"IF(S290=\"ESTUDIOS\",\"DES\",IF(S290=\"EVALUACIÓN\",\"DET\",IF(S290=\"DISEÑO PEDAGÓGICO\",\"DDP\",IF(S290=\"CAPACITACIÓN Y PROMOCIÓN DE SERVICIOS\",\"DCPS\",IF(S290=\"CERTIFICACIÓN DE PERSONAS\",\"DCP\",IF(S290=\"ZONA 1\",\"Z1\",IF(S290=\"ZONA 2\",\"Z2\",IF(S290=\"ZONA 3\",\"Z3\",IF(S290=\"ZONA 4\",\"Z4\",IF(S290=\"ZONA 5\",\"Z5\",IF(S290=\"ZONA 6\",\"Z6\",IF(S290=\"ZONA 7\",\"Z7\",\"\"))))))))))))","v":""},{"$f":"MONTH((TODAY()))","v":4},{"$f":"YEAR(TODAY())","v":2026}]
["CIUDAD:"]
["CENTRO OPERATVO:"]
["COBERTURA GEOGRÁFICA:\n",null,null,null,null,null,null,null,null,"REQUERIMIENTO",null,null,null,null,null,null,null,null,"(detallar las zonas, provincias, cantones o parroquias)"]
["PLAZO:\n (no puede sermayor a 1 año)",null,null,null,null,null,null,null,null,"ELIJA UN ELEMENTO",null,null,null,null,null,null,null,null,"(detallar el tiempo de plazo)"]
["CARGO DE LA PERSONA QUE SUSCRIBE:POR PARTE DEL SECAP",null,null,null,null,null,null,null,null,null,null,null,null,null,"ELIJA UN ELEMENTO"]
["NOMBRE "]
["LUGAR DE SUSCRIPCIÓN"]
[]
["2. IDENTIFICACIÓN DE LA CONTRAPARTE"]
["DESCRIPCIÓN",null,null,null,null,null,null,null,null,null,null,null,null,null,"RESPUESTA"]
["RAZÓN SOCIAL"]
["RUC"]
["TIPO DE CONTRAPARTE",null,null,null,null,null,null,null,null,null,null,null,null,null,"Elegir un elemento"]
["NOMBRE DEL REPRESENTANTE LEGAL"]
["NÚMERO DE CÉDULA DEL REPRESENTANTE LEGAL "]
["DIRECCIÓN DE LA INSTITUCIÓN"]
["TELÉFONO DE LA INSTITUCIÓN"]
["INICIO DE ACTIVIDADES SUPERIORES A 1 AÑO\n(información desde el RUC)",null,null,null,null,null,null,null,null,null,"Elija un elemento",null,null,null,"TIEMPO DE ACTIVIDAD",null,null,null,null,null,null,null,null,null,"(detallar el tiempo)"]
["LA CONTRAPARTE TIENE VÍNCULO FAMILIAR CON ALGÚN FUNCIONARIO DEL SECAP RELACIONADO A ESTA NEGOCIACIÓN",null,null,null,null,null,null,null,null,null,null,null,null,null,"Elija un elemento"]
["LA CONTRAPARTE PERTENECE A ALGÚN FUNCIONARIO DEL SECAP VINCULADO A ESTA NEGOCIACIÓN",null,null,null,null,null,null,null,null,null,null,null,null,null,"Elija un elemento"]
["SE GENERÓ INHABILIDAD POR INCUMPLIMIENTO EN CONVENIOS Y/O ACUERDOS SUSCRITOS CON ANTERIORIDAD",null,null,null,null,null,null,null,null,null,null,null,null,null,"Elija un elemento",null,null,"Si la respuesta es afirmativa colocar fecha"]
["NOTA: Para instituciones internacionales llenar lo que realmente aplique"]
[]
["3. JUSTIFICACIÓN"]
["Elija lo que aplique"]
[]
["ELIJA UN ELEMENTO"]
[]
[]
[]
["Sí en el recuadro anterior su elección fue OTRO, por favor detalle a continuación"]
[]
[]
[]
[]
[]
["4. SERVICIO REQUERIDO:"]
["(Marque con X en el casillero que se aplique y llene la información requerida)"]
[]
["Servicio",null,null,null,null,null,null,null,null,null,null,null,null,null,null,"ELIJA EL SERVICIO"]
[]
[]
[]
[]
["5. OBJETIVO DEL CONVENIO"]
["(Se deberá indicar el o los objetivos que se pretenden conseguir con la suscripción del Convenio Marco, Convenio de Cooperación Interinstitucional y Memorando de Entendimiento)"]
[]
[]
[]
[]
[]
[]
["5.1 OBJETIVOS ESPECÍFICOS"]
["Detallar de manera conjunta SECAP y contraparte"]
[]
[]
[]
[]
[]
[]
[]
[]
["6. OBLIGACIONES "]
["(Se deberá describir las  obligaciones que adquieren cada una de las partes intervinientes."]
[]
["a)      Obligaciones SECAP:"]
[]
[]
[]
[]
["b)      Obligaciones contraparte:"]
[]
[]
[]
["c)       Obligaciones conjuntas: "]
[]
[]
[]
[]
[]
["7. BENEFCIOS PARA EL SECAP "]
["(Se deberá describir el beneficio que representa el convenio interinstitucional para la institución)"]
[]
[]
[]
[]
[]
[]
[]
["8. SUGERENCIA PARA LA ADMINISTRACIÓN  DEL CONVENIO: "]
["(Complete la información)"]
[null,null,null,null,null,null,null,"SECAP",null,null,null,null,null,null,"ADMINISTRADOR"]
[null,null,null,null,null,null,null,"NOMBRE"]
[null,null,null,null,null,null,null,"CARGO"]
[null,null,null,null,null,null,null,"NÚMERO TELEFÓNICO"]
[null,null,null,null,null,null,null,"EMAIL"]
[]
[]
[]
[null,null,null,null,null,null,null,"CONTRAPARTE",null,null,null,null,null,null,"ADMINISTRADOR"]
[null,null,null,null,null,null,null,"NOMBRE"]
[null,null,null,null,null,null,null,"CARGO"]
[null,null,null,null,null,null,null,"NÚMERO TELEFÓNICO"]
[null,null,null,null,null,null,null,"EMAIL"]
[]
[]
[]
["9. HABILITANTES"]
["(Verifique y marque con X en los casilleros que se aplique)"]
[]
["N°.",null,"DOCUMENTO",null,null,null,null,null,null,null,null,null,null,null,"VERIFICADO",null,null,"ANEXADO",null,null,"OBSERVACIONES"]
[1,null,"Instrumento constitutivo o estatuto vigente, legalmente registrados, tratándose de personas jurídicas de derecho privado"]
[]
[2,null,"Nombramiento del representante legal, poder general/especial o documento que certifique su capacidad legal para suscribir"]
[]
[3,null,"Copia de cédula de identidad y papeleta de votación o pasaporte"]
[4,null,"Copia o certificado electrónico del Registro Único de Contribuyentes RUC y/o Régimen Simplificado para Emprendedores y Negocios Populares (RIMPE)"]
[]
[5,null,"Delegación para la firma de un Convenio por parte de la máxima autoridad de la contraparte (de ser el caso)"]
[6,null,"Certificación presupuestaria (convenio solo para sector público)"]
[7,null,"Acta/s de reunión de negociación para suscripción de posible Convenio"]
[8,null,"Oficio de solicitud de convenio (contraparte) de ser el caso"]
[9,null,"Logo contraparte en formato jpg."]
[10,null,"Pronunciamiento D. Administrativa, CAF, D. Planificación, D. Talento Humano de ser el caso."]
["NOTA: Para instituciones internacionales la documentación deberá ser apostillada y traducidas al idioma español."]
[]
[]
[]
[]
["10. REFERENCIAS "]
[]
["·         Resolución de los Valores por los Servicios Institucional de Certificación y Capacitación vigente;"]
["·         Instructivo de Negociación vigente;"]
["·         Método de cálculo para establecer el monto de pago a los examinadores en función del número de examinaciones realizadas, vigente;"]
["·         Método de cálculo para establecer el monto de pago a los facilitadores en función del número de horas de clase impartidas mensualmente y su nivel formación, vigente; y, "]
["·         Resolución de Instructivo de Convenios vigente."]
[]
[]
["11. RESPONSABLES "]
[]
[]
[null,null,"Elaborado:",null,null,null,null,null,"Detallar el nombre",null,null,null,null,null,null,null,"Firma"]
[]
[null,null,null,null,null,null,null,null,"(Analista)"]
[]
[null,null,"Revisado:",null,null,null,null,null,"Detallar el nombre",null,null,null,null,null,null,null,"Firma"]
[]
[null,null,null,null,null,null,null,null,"(Coordinador SP7)"]
[]
[null,null,"Aprobado:",null,null,null,null,null,"Detallar el nombre",null,null,null,null,null,null,null,"Firma"]
[]
[null,null,null,null,null,null,null,null,"Director Nacional o Zonal"]
[]
[]
[]
["La Norma Técnica de Control Interno 410-7 “Firmas electrónicas”, señala que: “…Las entidades, organismos y dependencias del sector público, así como las personas jurídicas que actúen en virtud de una potestad estatal, ajustarán sus procedimientos y operaciones e incorporarán los medios técnicos necesarios, para permitir el uso de la firma electrónica de conformidad con la Ley de Comercio Electrónico, Firmas y Mensajes de Datos y su reglamento.” En tal sentido, la vigencia del presente instrumento será a partir de la fecha de la última firma electrónica inserta.”"]

{"sheet":"C_C","index":4,"n_rows":1,"n_cols":1,"rows_kept":1,"cut":false,"hidden":true,"merged":[]}
["Estudios2024"]

{"sheet":"REQ_MARCO","index":5,"n_rows":170,"n_cols":25,"rows_kept":170,"cut":false,"hidden":true,"merged":[[159,2,162,7],[159,8,160,15],[159,16,162,23],[161,8,162,15],[163,2,166,7],[163,8,164,15],[163,16,166,23],[165,8,166,15],[14,0,14,13],[14,14,14,27],[105,7,105,13],[106,7,106,13],[107,7,107,13],[108,7,108,13],[109,7,109,13],[148,0,148,27],[149,0,149,27],[152,0,152,27],[155,2,158,7],[155,8,156,15],[155,16,158,23],[157,8,158,15],[137,0,137,1],[137,2,137,13],[13,0,13,8],[13,9,13,17],[13,18,13,27],[12,0,12,13],[12,14,12,27],[16,18,16,27],[17,0,17,8],[17,9,17,17],[0,0,5,8],[0,9,5,20],[0,21,1,27],[2,21,3,27],[4,21,4,27],[5,21,5,27],[8,5,9,10],[8,11,9,21],[11,0,11,27],[15,0,15,13],[15,14,15,27],[17,18,17,27],[145,0,145,27],[146,0,146,27],[147,0,147,27],[135,0,135,1],[135,2,135,13],[135,14,135,16],[135,17,135,19],[135,20,135,27],[134,0,134,1],[134,2,134,13],[134,14,134,16],[134,17,134,19],[134,20,134,27],[137,14,137,16],[137,17,137,19],[137,20,137,27],[136,0,136,1],[136,2,136,13],[136,14,136,16],[136,17,136,19],[136,20,136,27],[143,0,143,27],[133,0,133,1],[133,2,133,13],[133,14,133,16],[133,17,133,19],[133,20,133,27],[132,0,132,1],[132,2,132,13],[132,14,132,16],[132,17,132,19],[132,20,132,27],[130,2,131,13],[130,0,131,1],[130,14,131,16],[130,17,131,19],[130,20,131,27],[121,0,121,27],[122,0,122,27],[124,0,124,1],[124,2,124,13],[124,14,124,16],[124,17,124,19],[124,20,124,27],[129,0,129,1],[129,2,129,13],[129,14,129,16],[129,17,129,19],[129,20,129,27],[116,7,116,13],[116,14,116,21],[117,7,117,13],[117,14,117,21],[125,17,126,19],[125,20,126,27],[127,2,128,13],[127,0,128,1],[127,14,128,16],[127,17,128,19],[127,20,128,27],[95,0,95,27],[94,0,94,27],[105,14,105,21],[113,7,113,13],[113,14,113,21],[114,7,114,13],[114,14,114,21],[115,7,115,13],[115,14,115,21],[108,14,108,21],[109,14,109,21],[106,14,106,21],[107,14,107,21],[103,0,103,27],[104,0,104,27],[97,0,100,27],[169,0,172,25],[138,0,138,27],[35,0,35,27],[125,0,126,1],[125,2,126,13],[125,14,126,16],[16,0,16,8],[16,9,16,17],[27,0,27,13],[27,14,27,27],[28,0,28,13],[28,14,28,27],[37,0,37,27],[38,0,38,27],[77,0,77,27],[79,0,79,27],[81,0,82,27],[76,0,76,27],[60,0,63,27],[69,0,72,27],[66,0,66,27],[67,0,67,27],[24,14,24,27],[25,0,25,13],[20,14,20,27],[25,14,25,27],[26,0,26,13],[26,14,26,27],[59,0,59,27],[50,0,50,27],[51,0,51,27],[53,0,54,14],[53,15,54,27],[30,14,30,27],[31,0,31,9],[31,10,31,13],[31,14,31,23],[31,24,31,27],[18,0,18,13],[18,14,18,27],[19,0,19,13],[19,14,19,27],[84,0,84,27],[85,0,86,27],[24,0,24,13],[45,0,47,27],[58,0,58,27],[40,0,42,27],[29,0,29,13],[29,14,29,27],[30,0,30,13],[23,0,23,13],[23,14,23,27],[21,0,21,1],[21,3,21,4],[21,5,21,11],[21,13,21,14],[21,16,21,18],[21,19,21,20],[21,21,21,26],[22,0,22,27],[20,0,20,13],[89,0,90,27],[34,14,34,16],[34,17,34,21],[34,22,34,27],[32,0,32,13],[32,14,32,27],[33,0,33,13],[33,14,33,27],[34,0,34,13],[88,0,88,27]]}
["\n",null,null,null,null,null,null,null,null,"REQUERIMIENTO DE VIABILIDAD ",null,null,null,null,null,null,null,null,null,null,null,"Código: GES-PS-02-01-FOR02"]
[]
[null,null,null,null,null,null,null,null,null,null,null,null,null,null,null,null,null,null,null,null,null,"Versión: 7.1"]
[]
[null,null,null,null,null,null,null,null,null,null,null,null,null,null,null,null,null,null,null,null,null,"Fecha:  23/01/2024"]
[null,null,null,null,null,null,null,null,null,null,null,null,null,null,null,null,null,null,null,null,null,"Página 1 de 5"]
[]
[]
[null,null,null,null,null,"TIPO DE ACUERDO",null,null,null,null,null,"ELIJA UN ELEMENTO"]
[]
[]
["1. INFORMACIÓN GENERAL"]
["REQUERIMIENTO Nro.",null,null,null,null,null,null,null,null,null,null,null,null,null,"XXX-SECAP-XX-202X"]
["UNIDAD OPERATIVA DEL SECAP",null,null,null,null,null,null,null,null,"ELIJA UN ELEMENTO",null,null,null,null,null,null,null,null,"ELIJA UN ELEMENTO"]
["CIUDAD:"]
["CENTRO OPERATVO:"]
["COBERTURA GEOGRÁFICA:\n",null,null,null,null,null,null,null,null,"Nacional",null,null,null,null,null,null,null,null,"(detallar las zonas, provincias, cantones o parroquias)"]
["PLAZO:\n (no puede sermayor a 1 año)",null,null,null,null,null,null,null,null,"ELIJA UN ELEMENTO",null,null,null,null,null,null,null,null,"(detallar el tiempo de plazo)"]
["CARGO DE LA PERSONA QUE SUSCRIBE:POR PARTE DEL SECAP",null,null,null,null,null,null,null,null,null,null,null,null,null,"ELIJA UN ELEMENTO"]
["NOMBRE "]
["LUGAR DE SUSCRIPCIÓN"]
[]
["2. IDENTIFICACIÓN DE LA CONTRAPARTE"]
["DESCRIPCIÓN",null,null,null,null,null,null,null,null,null,null,null,null,null,"RESPUESTA"]
["RAZÓN SOCIAL"]
["RUC / CÉDULA"]
["TIPO DE CONTRAPARTE",null,null,null,null,null,null,null,null,null,null,null,null,null,"Elegir un elemento"]
["NOMBRE DEL REPRESENTANTE LEGAL"]
["NÚMERO DE CÉDULA DEL REPRESENTANTE LEGAL "]
["DIRECCIÓN DE LA INSTITUCIÓN"]
["TELÉFONO DE LA INSTITUCIÓN"]
["INICIO DE ACTIVIDADES SUPERIORES A 1 AÑO\n(información desde el RUC)",null,null,null,null,null,null,null,null,null,"Elija un elemento",null,null,null,"TIEMPO DE ACTIVIDAD",null,null,null,null,null,null,null,null,null,"(detallar el tiempo)"]
["LA CONTRAPARTE TIENE VÍNCULO FAMILIAR CON ALGÚN FUNCIONARIO DEL SECAP RELACIONADO A ESTA NEGOCIACIÓN",null,null,null,null,null,null,null,null,null,null,null,null,null,"Elija un elemento"]
["LA CONTRAPARTE PERTENECE A ALGÚN FUNCIONARIO DEL SECAP VINCULADO A ESTA NEGOCIACIÓN",null,null,null,null,null,null,null,null,null,null,null,null,null,"Elija un elemento"]
["SE GENERÓ INHABILIDAD POR INCUMPLIMIENTO EN CONVENIOS Y/O ACUERDOS SUSCRITOS CON ANTERIORIDAD",null,null,null,null,null,null,null,null,null,null,null,null,null,"Elija un elemento",null,null,"Si la respuesta es afirmativa colocar fecha"]
["NOTA: Para instituciones internacionales llenar lo que realmente aplique"]
[]
["3. JUSTIFICACIÓN"]
["Elija lo que aplique"]
[]
["ESTABLECER LA COOPERACIÓN CON INSTITUCIONES PERTINENENTES CAPACES DE OFRECER AYUDA O CONOCIMIENTOS COMPLEMENTARIOS"]
[]
[]
[]
["Sí en el recuadro anterior su elección fue OTRO, por favor detalle a continuación"]
[]
[]
[]
[]
[]
["4. SERVICIO REQUERIDO:"]
["(Marque con X en el casillero que se aplique y llene la información requerida)"]
[]
["Servicio",null,null,null,null,null,null,null,null,null,null,null,null,null,null,"ELIJA EL SERVICIO"]
[]
[]
[]
[]
["5. OBJETIVO DEL CONVENIO"]
["(Se deberá indicar el o los objetivos que se pretenden conseguir con la suscripción del Convenio Marco, Convenio de Cooperación Interinstitucional y Memorando de Entendimiento)"]
[]
[]
[]
[]
[]
[]
["5.1 OBJETIVOS ESPECÍFICOS"]
["Detallar de manera conjunta SECAP y contraparte"]
[]
[]
[]
[]
[]
[]
[]
[]
["6. OBLIGACIONES "]
["(Se deberá describir las  obligaciones que adquieren cada una de las partes intervinientes."]
[]
["a)      Obligaciones SECAP:"]
[]
[]
[]
[]
["b)      Obligaciones contraparte:"]
[]
[]
[]
["c)       Obligaciones conjuntas: "]
[]
[]
[]
[]
[]
["7. BENEFCIOS PARA EL SECAP "]
["(Se deberá describir el beneficio que representa el convenio interinstitucional, carta de intención o compromiso para la institución)"]
[]
[]
[]
[]
[]
[]
[]
["8. SUGERENCIA PARA LA ADMINISTRACIÓN  DEL CONVENIO: "]
["(Complete la información)"]
[null,null,null,null,null,null,null,"SECAP",null,null,null,null,null,null,"ADMINISTRADOR"]
[null,null,null,null,null,null,null,"NOMBRE"]
[null,null,null,null,null,null,null,"CARGO"]
[null,null,null,null,null,null,null,"NÚMERO TELEFÓNICO"]
[null,null,null,null,null,null,null,"EMAIL"]
[]
[]
[]
[null,null,null,null,null,null,null,"CONTRAPARTE",null,null,null,null,null,null,"ADMINISTRADOR"]
[null,null,null,null,null,null,null,"NOMBRE"]
[null,null,null,null,null,null,null,"CARGO"]
[null,null,null,null,null,null,null,"NÚMERO TELEFÓNICO"]
[null,null,null,null,null,null,null,"EMAIL"]
[]
[]
[]
["9. HABILITANTES"]
["(Verifique y marque con X en los casilleros que se aplique)"]
[]
["N°.",null,"DOCUMENTO",null,null,null,null,null,null,null,null,null,null,null,"VERIFICADO",null,null,"ANEXADO",null,null,"OBSERVACIONES"]
[1,null,"Instrumento constitutivo o estatuto vigente, legalmente registrados, tratándose de personas jurídicas de derecho privado"]
[]
[2,null,"Nombramiento del representante legal, poder general/especial o documento que certifique su capacidad legal para suscribir"]
[]
[3,null,"Copia de cédula de identidad y papeleta de votación o pasaporte"]
[4,null,"Copia o certificado electrónico del Registro Único de Contribuyentes RUC y/o Régimen Simplificado para Emprendedores y Negocios Populares (RIMPE)"]
[]
[5,null,"Delegación para la firma de un Convenio por parte de la máxima autoridad de la contraparte (de ser el caso)"]
[6,null,"Certificación presupuestaria (convenio específico solo para sector público)"]
[7,null,"Acta/s de reunión de negociación para suscripción de posible Convenio"]
[8,null,"Oficio de solicitud de convenio (contraparte) de ser el caso"]
[9,null,"Logo contraparte en formato jpg."]
[10,null,"Pronunciamiento D. Administrativa, CAF, D. Planificación, D. Talento Humano de ser el caso."]
["NOTA: Para instituciones internacionales la documentación deberá ser apostillada y traducidas al idioma español."]
[]
[]
[]
[]
["10. REFERENCIAS "]
[]
["·         Resolución de los Valores por los Servicios Institucional de Certificación y Capacitación vigente;"]
["·         Instructivo de Negociación vigente;"]
["·         Método de cálculo para establecer el monto de pago a los examinadores en función del número de examinaciones realizadas, vigente;"]
["·         Método de cálculo para establecer el monto de pago a los facilitadores en función del número de horas de clase impartidas mensualmente y su nivel formación, vigente; y, "]
["·         Resolución de Instructivo de Convenios vigente."]
[]
[]
["11. RESPONSABLES "]
[]
[]
[null,null,"Elaborado:",null,null,null,null,null,"Detallar el nombre",null,null,null,null,null,null,null,"Firma"]
[]
[null,null,null,null,null,null,null,null,"(Analista)"]
[]
[null,null,"Revisado:",null,null,null,null,null,"Detallar el nombre",null,null,null,null,null,null,null,"Firma"]
[]
[null,null,null,null,null,null,null,null,"(Coordinador SP7)"]
[]
[null,null,"Aprobado:",null,null,null,null,null,"Detallar el nombre",null,null,null,null,null,null,null,"Firma"]
[]
[null,null,null,null,null,null,null,null,"Director Nacional o Zonal"]
[]
[]
[]
["La Norma Técnica de Control Interno 410-7 “Firmas electrónicas”, señala que: “…Las entidades, organismos y dependencias del sector público, así como las personas jurídicas que actúen en virtud de una potestad estatal, ajustarán sus procedimientos y operaciones e incorporarán los medios técnicos necesarios, para permitir el uso de la firma electrónica de conformidad con la Ley de Comercio Electrónico, Firmas y Mensajes de Datos y su reglamento.” En tal sentido, la vigencia del presente instrumento será a partir de la fecha de la última firma electrónica inserta.”"]

{"sheet":"Informe R.A.M","index":6,"n_rows":68,"n_cols":26,"rows_kept":68,"cut":false,"hidden":true,"merged":[[9,22,10,22],[67,0,70,26],[14,18,15,25],[14,4,15,10],[9,7,10,10],[9,11,10,21],[61,2,64,7],[61,8,62,15],[61,16,64,23],[63,8,64,15],[57,2,60,7],[57,8,58,15],[57,16,60,23],[59,8,60,15],[53,0,53,27],[23,15,23,19],[6,0,6,27],[27,0,27,27],[28,0,30,27],[33,0,33,27],[34,0,36,27],[19,0,19,27],[22,0,22,4],[22,5,22,12],[22,15,22,19],[22,20,22,27],[21,0,21,4],[21,5,21,27],[14,14,15,17],[14,2,15,3],[23,0,23,4],[23,5,23,12],[0,0,5,8],[0,9,5,20],[0,21,1,27],[2,21,3,27],[4,21,4,27],[5,21,5,27],[23,20,23,27],[38,0,38,27],[39,0,41,27],[43,0,43,27],[44,0,46,27]]}
["\n",null,null,null,null,null,null,null,null,"INFORME DE RENOVACIÓN, AMPLIACIÓN O MODIFICACIÓN DE CONVENIO / CONTRATO",null,null,null,null,null,null,null,null,null,null,null,"Código: GES-PS-02-01-FOR02"]
[]
[null,null,null,null,null,null,null,null,null,null,null,null,null,null,null,null,null,null,null,null,null,"Versión: 7.1"]
[]
[null,null,null,null,null,null,null,null,null,null,null,null,null,null,null,null,null,null,null,null,null,"Fecha:  23/01/2024"]
[null,null,null,null,null,null,null,null,null,null,null,null,null,null,null,null,null,null,null,null,null,"Página 1 de 5"]
["Nota: Cúmplase lo dispuesto en la Resolución Nro. SECAP-SECAP-2024-0010-R de 03/10/2024.\nSobre lo detallado en los Convenios/Contratos Modificatorios."]
[]
[]
[null,null,null,null,null,null,null,"INFORME Nro.",null,null,null,{"$f":"IF(OR(X10=\"\",W10=\"\",Y10=\"\",Z10=\"\"),\"\",CONCATENATE(W10,\"-\",\"IRAM\",\"-\",X10,\"-\",Y10,\"-\",Z10))","v":""},null,null,null,null,null,null,null,null,null,null,null,{"$f":"IF(S15=\"CAPACITACIÓN Y PROMOCIÓN DE SERVICIOS\",\"DCPS\",IF(S15=\"CERTIFICACIÓN DE PERSONAS\",\"DCP\",IF(S15=\"DISEÑO PEDAGÓGICO\",\"DDP\",IF(S15=\"ESTUDIOS\",\"DES\",IF(S15=\"EVALUACIÓN\",\"DET\",IF(S15=\"ZONA 1\",\"Z1\",IF(S15=\"ZONA 2\",\"Z2\",IF(S15=\"ZONA 3\",\"Z3\",IF(S15=\"ZONA 4\",\"Z4\",IF(S15=\"ZONA 5\",\"Z5\",IF(S15=\"ZONA 6\",\"Z6\",IF(S15=\"ZONA 7\",\"Z7\",\"\"))))))))))))","v":""},{"$f":"MONTH(TODAY())","v":4},{"$f":"YEAR(TODAY())","v":2026}]
[]
[]
[]
[]
[null,null,"TIPO DE ACUERDO",null,"ELIJA UN ELEMENTO",null,null,null,null,null,null,null,null,null,"UNIDAD OPERATIVA SECAP",null,null,null,"ELIJA UN ELEMENTO"]
[]
[]
[]
[]
[" INFORMACIÓN GENERAL"]
[]
["Contraparte:",null,null,null,null,"Nombre de la institución"]
["Nro. de Acuerdo",null,null,null,null,"Detalle el número del acuerdo  original",null,null,null,null,null,null,null,null,null,"Fecha de Suscripción",null,null,null,null,"Detalle la fecha de suscripción del acuerdo original"]
["Resolución (Tarifario)",null,null,null,null,"Resolución Nro. SECAP-SECAP-20XX-XXXX-R",null,null,null,null,null,null,null,null,null,"Fecha de Vencimiento",null,null,null,null,"Detalle la fecha de vencimiento del acuerdo original"]
[]
[]
[]
["OBJETO DEL ACUERDO ORIGINAL"]
["Transcriba el Objeto del Acuerdo original"]
[]
[]
[]
[]
["ANTECEDENTES:"]
["Detallar las actividades realizadas desde la notificación como Administrador y Comisión Técnica para el cumplimiento del objeto y obligaciones del Acuerdo original"]
[]
[]
[]
["METAS ALCANZADAS:"]
["Detallar el porcentaje de cumplimiento, valores facturados y  valores cobrados datos que fueron motivo para la suscripción del acuerdo original."]
[]
[]
[]
["JUSTIFICACIÓN PARA RENOVACIÓN, AMPLIACIÓN, MODIFICACIÓN:"]
["Justifique la razón por el cual se debe realizar la renovación, ampliación o modificación del acuerdo original"]
[]
[]
[]
[]
[]
[]
[]
[]
[" RESPONSABLES "]
[]
[]
[]
[null,null,"Elaborado:",null,null,null,null,null,"Detallar el nombre",null,null,null,null,null,null,null,"Firma"]
[]
[null,null,null,null,null,null,null,null,"Comisión Técnica"]
[]
[null,null,"Aprobado:",null,null,null,null,null,"Detallar el nombre",null,null,null,null,null,null,null,"Firma"]
[]
[null,null,null,null,null,null,null,null,"Administrador de Convenio / Contrato"]
[]
[]
[]
["La Norma Técnica de Control Interno 410-7 “Firmas electrónicas”, señala que: “…Las entidades, organismos y dependencias del sector público, así como las personas jurídicas que actúen en virtud de una potestad estatal, ajustarán sus procedimientos y operaciones e incorporarán los medios técnicos necesarios, para permitir el uso de la firma electrónica de conformidad con la Ley de Comercio Electrónico, Firmas y Mensajes de Datos y su reglamento.” En tal sentido, la vigencia del presente instrumento será a partir de la fecha de la última firma electrónica inserta.”"]